{"text_format":"1","workbook":"xlsx","n_sheets":1,"sheets":["Rankings"],"not_rendered":{"charts":0,"images":0,"macros":0,"external_links":0,"defined_names":0,"comments":0,"pivot_tables":0},"unopened":[],"bounds":{"document_bytes":16777216,"sheet_cells":100000,"rows_first":2000,"rows_last":500,"rows_between":2000,"halvings":0,"cell_chars":16384,"cell_head_chars":4096},"cells_cut":0,"cells_raw":0,"read":"whole","date_system":"1900"}

{"sheet":"Rankings","index":0,"n_rows":202,"n_cols":39,"rows_kept":202,"cut":false,"hidden":false,"merged":[[2,9,2,13],[2,4,2,8],[2,0,2,3],[2,34,2,38],[2,29,2,33],[2,24,2,28],[2,19,2,23],[2,14,2,18]]}
["2012 Student Steel Bridge Conference Results"]
[]
["Ineligibilities",null,null,null,"Construction Speed",null,null,null,null,"Lightness",null,null,null,null,"Display",null,null,null,null,"Stiffness",null,null,null,null,"Economy",null,null,null,null,"Efficiency",null,null,null,null,"Overall"]
["Conference","Chapter",null,"IE","Conference","Chapter","Time","Conf. Rank","Nat'l Rank","Conference","Chapter","Weight","Conf. Rank","Nat'l Rank","Conference","Chapter","Score","Conf. Rank","Nat'l Rank","Conference","Chapter","Agg D","Conf. Rank","Nat'l Rank","Conference","Chapter","Cc ","Conf. Rank","Nat'l Rank","Conference","Chapter","Cs","Conf. Rank","Nat'l Rank","Conference","Chapter","Cc + Cs","Conf. Rank","Nat'l Rank"]
["TexMex","Texas Tech University",null,3,"NorthCentral","Michigan Technological University",7.5000000099999999,1,{"$f":"RANK(G5,G$5:G$164,1)","v":1},"NewEngland","University of Laval",117.00000005,1,{"$f":"RANK(L5,L$5:L$164,1)","v":1},"PacSW","CALIFORNIA POLYTECHNIC STATE UNIVERSITY, SAN LUIS OBISPO",1,1,{"$f":"RANK(R5,R$5:R$164,1)","v":1},"Metro","Manhattan College",0.31000004000000009,1,{"$f":"RANK(V5,V$5:V$164,1)","v":1},"MidPac","University of California, Berkeley ",1563333.3333333533,1,{"$f":"RANK(AA5,AA$5:AA$164,1)","v":1},"UpstateNY","SUNY College Of Technology at Canton",2015000.0000000501,1,{"$f":"RANK(AF5,AF$5:AF$164,1)","v":1},"MidPac","University of California, Berkeley ",3684333.333333353,1,{"$f":"RANK(AK5,AK$5:AK$164,1)","v":1}]
["GreatLakes","Northwestern University",null,6,"UpstateNY","SUNY College Of Technology at Canton",7.7666667166666663,1,{"$f":"RANK(G6,G$5:G$164,1)","v":2},"MidWest","Lakehead University ",128.00000003,1,{"$f":"RANK(L6,L$5:L$164,1)","v":2},"MidPac","California State University, Sacramento ",1,1,{"$f":"RANK(R6,R$5:R$164,1)","v":1},"DeepSouth","University of Mississippi",0.56700003999999993,1,{"$f":"RANK(V6,V$5:V$164,1)","v":2},"NewEngland","University of Laval",1602500.0000000498,1,{"$f":"RANK(AA6,AA$5:AA$164,1)","v":2},"PacSW","CALIFORNIA POLYTECHNIC STATE UNIVERSITY, SAN LUIS OBISPO",2116000.0000000098,1,{"$f":"RANK(AF6,AF$5:AF$164,1)","v":2},"NewEngland","University of Laval",3989500.0000000498,1,{"$f":"RANK(AK6,AK$5:AK$164,1)","v":2}]
["MidPac","California State University, Fresno ",null,9.3000000000000007,"MidPac","University of California, Berkeley ",7.8166666866666663,1,3,"MidPac","University of California, Berkeley ",131.40000001999999,1,3,"UpstateNY","Clarkson University",1,1,1,"RockyMtn","Utah State University ",0.58500008999999997,1,3,"NewEngland","Massachusetts Institute of Technology",1876666.6666667466,2,3,"MidPac","University of California, Berkeley ",2121000.00000002,1,3,"NewEngland","Massachusetts Institute of Technology",4040666.6666667466,2,3]
["PacSW","CALIFORNIA STATE UNIVERSITY, LONG BEACH",null,9.3000000000000007,"PacNW","Portland State University",8.3333333633333329,1,4,"UpstateNY","SUNY College Of Technology at Canton",132.50000005000001,1,4,"MidAtlantic","Drexel University",1,1,1,"UpstateNY","Cornell University",0.62000004000000009,1,4,"NewEngland","University of New Hampshire",2027500.0000000403,3,4,"NewEngland","Massachusetts Institute of Technology",2164000.0000000801,1,4,"PacSW","CALIFORNIA POLYTECHNIC STATE UNIVERSITY, SAN LUIS OBISPO",4295166.6666666772,1,4]
["PacNW","Montana State University",null,9.3000000000000007,"RockyMtn","Brigham Young University",8.533333373333333,1,5,"NewEngland","Massachusetts Institute of Technology",135.50000008000001,2,5,"MidWest","Iowa State University",1,1,1,"UpstateNY","SUNY College Of Technology at Canton",0.69000005000000009,2,5,"Carolinas","Clemson University",2063333.3333333533,1,5,"MidWest","Lakehead University ",2254000.0000000298,1,5,"UpstateNY","SUNY College Of Technology at Canton",4345000.0000000503,1,5]
["Metro","NYU-Poly",null,9.3000000000000007,"PacSW","CALIFORNIA POLYTECHNIC STATE UNIVERSITY, SAN LUIS OBISPO",8.7166666766666676,1,6,"PacSW","CALIFORNIA POLYTECHNIC STATE UNIVERSITY, SAN LUIS OBISPO",141.00000001000001,1,6,"DeepSouth","Louisiana State University",1,1,1,"PacSW","CALIFORNIA POLYTECHNIC STATE UNIVERSITY, SAN LUIS OBISPO",0.70600001000000001,1,6,"PacSW","CALIFORNIA POLYTECHNIC STATE UNIVERSITY, SAN LUIS OBISPO",2179166.6666666768,1,6,"NewEngland","University of Laval",2387000.0000000498,2,6,"Carolinas","Clemson University",4928333.3333333526,1,6]
["GreatLakes","Purdue University",null,9.3000000000000007,"NewEngland","Massachusetts Institute of Technology",9.3833334133333324,1,7,"PacNW","Portland State University",157.00000003,1,7,"Virginias","Marshall University",1,1,1,"MidWest","Mankato State University",0.72800008999999999,1,7,"NorthCentral","Michigan Technological University",2250000.0000000098,1,7,"NorthCentral","University of Michigan",2469000.0000000298,1,7,"NorthCentral","University of Michigan",5145666.6666666958,1,7]
["NewEngland","Tufts University",null,9.3000000000000007,"SoEast","University of Florida",9.6166667466666667,1,8,"SoEast","University of Florida",159.30000008000002,1,8,"NorthCentral","Michigan Technological University",1,1,1,"NorthCentral","University of Michigan",0.74900002999999993,1,8,"UpstateNY","SUNY College Of Technology at Canton",2330000.0000000498,1,8,"PacNW","Portland State University",2700000.0000000298,1,8,"PacNW","Portland State University",5200000.0000000298,1,8]
["NewEngland","UConn",null,9.3000000000000007,"PacNW","Washington State University",9.8166667366666669,2,9,"RockyMtn","Brigham Young University",160.20000003999999,1,9,"GreatLakes","Milwaukee School of Engineering",1,1,1,"DeepSouth","Louisiana State University",0.75400001000000005,2,9,"OhioValley","University Akron",2347500.0000000098,1,9,"RockyMtn","Brigham Young University",2746000.00000004,1,9,"NewEngland","University of New Hampshire",5237500.00000004,3,9]
["GreatLakes","University of Wisconsin at Milwaukee",null,9.3000000000000007,"Carolinas","Clemson University",10.316666686666666,1,10,"Carolinas","Clemson University",166.80000002,1,10,"MidCont","Missouri University of Science and Technology",1,1,1,"TexMex","University of Texas - El Paso",0.78125005000000003,1,10,"PacNW","Washington State University",2454166.6666667364,1,10,"SoEast","University of South Florida",2757000.0000000801,1,10,"RockyMtn","Brigham Young University",5306000.00000004,1,10]
["DeepSouth","Arkansas State University",null,12.2,"NewEngland","University of Laval",10.683333383333334,2,11,"MidWest","University of Minnesota",171.00000008000001,2,11,"Metro","Montreal",1,1,1,"MidPac","University of California, Berkeley ",0.80700001999999993,1,11,"DeepSouth","Louisiana Tech",2476666.6666666865,1,11,"SoEast","University of Florida",2810000.0000000801,2,11,"SoEast","University of South Florida",5486166.6666667461,1,11]
["GreatLakes","Bradley University",null,12.2,"SoEast","University of South Florida",10.916666746666666,2,12,"NorthCentral","University of Michigan",172.00000003,1,12,"Carolinas","North Carolina State University",1,1,1,"NewEngland","Massachusetts Institute of Technology",0.8090000799999999,1,12,"PacNW","Portland State University",2500000.0000000293,2,12,"Carolinas","Clemson University",2865000.00000002,1,12,"SoEast","University of Florida",5695000.0000000801,2,12]
["OhioValley","Cincinnati State Technical & Community College",null,12.2,"MidWest","University of Minnesota",11.05000008,1,13,"UpstateNY","Ecole de Technologie Superieure International",179.50000001999999,2,13,"TexMex","Universidad Autonoma del Estado de Mexico",1,1,1,"MidCont","University of Missouri-Kansas City",0.81250005000000003,1,13,"RockyMtn","Brigham Young University",2560000.00000004,1,13,"MidCont","University of Missouri-Kansas City",2909500.0000000498,1,13,"PacNW","University of Alaska - Fairbanks",5697500.0000000102,2,13]
["GreatLakes","Indiana University- Purdue University Fort Wayne",null,12.2,"RockyMtn","Utah State University ",12.10000009,2,14,"SoEast","University of South Florida",180.60000008,2,14,"OhioValley","University Akron",1,1,1,"DeepSouth","University of Louisiana at Lafayette",0.81300002999999998,3,14,"PacNW","University of Alaska - Fairbanks",2607500.0000000098,3,14,"TexMex","University of Texas - El Paso",2919250.0000000498,1,14,"OhioValley","University Akron",5737500.0000000102,1,14]
["DeepSouth","Mississippi State University",null,12.2,"Metro","NJIT",12.883333363333334,1,15,"PacSW","UNIVERSITY OF NEVADA, LAS VEGAS",195.00000004,2,15,"PacNW","University of Alaska - Fairbanks",1,1,1,"OhioValley","University Akron",0.91000001000000019,1,15,"NorthCentral","University of Michigan",2676666.6666666963,2,15,"UpstateNY","Ecole de Technologie Superieure International",2935000.00000002,2,15,"RockyMtn","Colorado School of Mines",5902500.0000000298,2,15]
["GreatLakes","Trine University",null,12.2,"SoEast","University of Tennessee - Knoxville",13.083333343333335,3,16,"TexMex","Texas A&M University",197.80000007000001,1,16,"RockyMtn","University of Colorado-Boulder",1,1,1,"RockyMtn","Colorado School of Mines",0.93600002999999998,2,16,"SoEast","University of South Florida",2729166.6666667466,1,16,"RockyMtn","Colorado School of Mines",2970000.0000000298,2,16,"NorthCentral","Michigan Technological University",6023000.0000000102,2,16]
["UpstateNY","Rochester Institute Of Technology",null,"11.2.4","PacSW","UNIVERSITY OF NEVADA, LAS VEGAS",13.350000040000001,2,17,"RockyMtn","Colorado School of Mines",203.40000003,2,17,"SoEast","University of Tennessee - Knoxville",1,1,1,"SoEast","University of South Florida",0.95100007999999991,1,17,"SoEast","University of Florida",2885000.0000000801,2,17,"MidWest","University of Minnesota",2973000.0000000801,2,17,"UpstateNY","Ecole de Technologie Superieure International",6158333.3333333535,2,17]
["PacSW","ARIZONA STATE UNIVERSITY",null,"11.8.2","NorthCentral","University of Michigan",13.383333363333334,2,18,"MidAtlantic","Temple University",205.00000005000001,1,18,"NewEngland","University of Vermont",1,1,1,"MidWest","Lakehead University ",0.97400003000000002,2,18,"RockyMtn","Colorado School of Mines",2932500.0000000303,2,18,"TexMex","Texas A&M University",3071750.0000000698,2,18,"MidWest","University of Minnesota",6288000.0000000801,1,18]
["PacSW","CALIFORNIA BAPTIST UNIVERSITY",null,"11.8.2","SoEast","Vanderbilt University",13.4000001,4,19,"MidCont","University of Missouri-Kansas City",209.70000005,1,19,"Carolinas","Clemson University",2,2,19,"PacNW","University of Alaska - Fairbanks",0.99000001000000004,1,19,"SoEast","Georgia Southern University",3159166.6666667168,3,19,"PacNW","University of Alaska - Fairbanks",3090000.0000000098,2,19,"PacNW","Washington State University",6544166.6666667359,3,19]
["PacSW","CALIFORNIA STATE UNIVERSITY, FULLERTON",null,"11.8.2","NewEngland","University of New Hampshire",13.516666706666667,3,20,"PacNW","University of Alaska - Fairbanks",210.00000001000001,2,20,"UpstateNY","Ecole de Technologie Superieure International",2,2,19,"NewEngland","University of New Hampshire",1.02000004,2,20,"UpstateNY","Ecole de Technologie Superieure International",3223333.3333333535,2,20,"NewEngland","University of New Hampshire",3210000.00000004,3,20,"SoEast","Vanderbilt University",6920000.0000000997,3,20]
["PacSW","CALIFORNIA STATE UNIVERSITY, LOS ANGELES",null,"11.8.2","MidAtlantic","Temple University",13.60000005,1,21,"NewEngland","Wenwroth Institute of Technology",211.00000001999999,3,21,"MidCont","Kansas State University",2,2,19,"MidPac","University of the Pacific ",1.02700003,2,21,"SoEast","University of Tennessee - Knoxville",3270833.3333333433,4,21,"NewEngland","Wenwroth Institute of Technology",3215000.00000002,4,21,"MidWest","Lakehead University ",7104000.0000000298,2,21]
["SoEast","Florida Atlantic University",null,"11.8.2","TexMex","University of Texas - El Paso",14.20000005,1,22,"TexMex","University of Texas - El Paso",213.80000004999999,2,22,"DeepSouth","Louisiana Tech",2,2,19,"NorthCentral","Michigan Technological University",1.0430000100000001,2,22,"MidWest","University of Minnesota",3315000.0000000806,1,22,"PacSW","UNIVERSITY OF NEVADA, LAS VEGAS",3325000.00000004,2,22,"TexMex","University of Texas - El Paso",7179250.0000000494,1,22]
["Virginias","George Mason University",null,"11.8.2","MidPac","University of California, Davis ",14.233333373333332,2,23,"OhioValley","University of Louisville",215.00000005000001,1,23,"NorthCentral","Michigan State University",2,2,19,"SoEast","Vanderbilt University",1.0550001000000002,2,23,"SoEast","Vanderbilt University",3350000.0000001001,5,23,"OhioValley","University Akron",3390000.0000000098,1,23,"PacSW","UNIVERSITY OF NEVADA, LAS VEGAS",7330000.00000004,2,23]
["GreatLakes","Illinois Institute of Technology",null,"11.8.2","SoEast","Southern Polytechnic State University",14.700000119999999,5,24,"SoEast","University of Puerto Rico - Mayaguez",217.50000001999999,3,24,"RockyMtn","South Dakota School of Mines and Technology",2,2,19,"TexMex","University of Texas - San Antonio",1.06250003,2,24,"RockyMtn","Utah State University ",3630000.0000000894,3,24,"SoEast","University of Puerto Rico - Mayaguez",3435000.00000002,3,24,"OhioValley","Youngstown State University",7533333.3333333535,2,24]
["PacSW","LOYOLA MARYMOUNT UNIVERSITY",null,"11.8.2","NewEngland","Wenwroth Institute of Technology",14.85000002,4,25,"NewEngland","University of New Hampshire",219.00000004,4,25,"Metro","The College of New Jersey",2,2,19,"SoEast","University of Alabama",1.0900000600000002,3,25,"OhioValley","Youngstown State University",3693333.333333353,2,25,"MidAtlantic","Temple University",3504000.0000000498,1,25,"MidAtlantic","Temple University",7584000.0000000503,1,25]
["NorthCentral","Ohio Northern University",null,"11.8.2","OhioValley","University Akron",15.650000010000001,1,26,"OhioValley","Youngstown State University",236.00000001999999,2,26,"PacSW","UNIVERSITY OF ARIZONA",2,2,19,"TexMex","Texas A&M University",1.09375007,3,26,"Metro","NJIT",3865000.0000000298,1,26,"SoEast","Vanderbilt University",3570000.0000001001,4,26,"NewEngland","Wenwroth Institute of Technology",7670000.0000000196,4,26]
["MidCont","Oklahoma State University",null,"11.8.2","UpstateNY","Ecole de Technologie Superieure International",16.116666686666669,2,27,"OhioValley","University Akron",248.00000001000001,3,27,"PacNW","University of British Columbia",2,2,19,"NewEngland","Wenwroth Institute of Technology",1.1050000200000001,3,27,"PacSW","UNIVERSITY OF NEVADA, LAS VEGAS",4005000.0000000405,2,27,"OhioValley","University of Louisville",3760000.0000000494,2,27,"TexMex","Texas A&M University",8016750.0000000698,2,27]
["MidPac","Santa Clara University ",null,"11.8.2","MidWest","Lakehead University ",16.166666696666667,2,28,"SoEast","Vanderbilt University",251.50000009999999,4,28,"MidPac","University of California, Berkeley ",2,2,19,"NewEngland","University of Hartford",1.11300011,4,28,"MidAtlantic","Temple University",4080000.0000000494,1,28,"NorthCentral","Michigan Technological University",3773000.0000000098,2,28,"Metro","NJIT",8220000.0000000298,1,28]
["PacNW","Seattle University",null,"11.8.2","SoEast","University of Puerto Rico - Mayaguez",16.21666668666667,6,29,"PacNW","Washington State University",263.00000007,3,29,"MidWest","University of North Dakota",2,2,19,"PacNW","Portland State University",1.1300000300000002,2,29,"MidWest","South Dakota State University",4193333.3333333931,2,29,"OhioValley","Youngstown State University",3840000.0000000205,3,29,"SoEast","University of Puerto Rico - Mayaguez",8300000.0000000205,4,29]
["DeepSouth","University of Arkansas at Little Rock",null,"11.8.2","TexMex","Texas A&M University",16.483333403333333,2,30,"MidWest","South Dakota State University",264.00000005999999,3,30,"MidAtlantic","University of Pittsburgh - Johnstown",2,2,19,"UpstateNY","Ecole de Technologie Superieure International",1.14000002,3,30,"TexMex","University of Texas - El Paso",4260000.0000000494,1,30,"DeepSouth","Louisiana State University",3944000.0000000098,1,30,"MidWest","South Dakota State University",8372333.3333333926,3,30]
["PacSW","UNIVERSITY OF CALIFORNIA, IRVINE",null,"11.8.2","PacNW","University of Alaska - Fairbanks",17.383333343333334,3,31,"NorthCentral","Michigan Technological University",273.00000001000001,2,31,"SoEast","University of Puerto Rico - Mayaguez",2,2,19,"RockyMtn","Brigham Young University",1.1440000400000001,3,31,"MidPac","University of California, Davis ",4270000.00000004,2,31,"PacNW","Washington State University",4090000.0000000698,3,31,"SoEast","Southern Polytechnic State University",8832000.0000001192,5,31]
["GreatLakes","University of Illinois at Chicago",null,"11.8.2","OhioValley","Youngstown State University",18.466666686666667,2,32,"MidCont","Kansas State University",284.10000002000004,2,32,"TexMex","University of Texas - Austin",2,2,19,"MidAtlantic","Drexel University",1.15700001,1,32,"SoEast","Southern Polytechnic State University",4410000.0000001192,6,32,"MidAtlantic","Drexel University",4109000.0000000098,2,32,"SoEast","University of Tennessee - Knoxville",8938833.3333333433,6,32]
["DeepSouth","University of Tennessee at Martin",null,"11.8.2","Carolinas","Georgia Tech",18.933333363333332,2,33,"MidAtlantic","Drexel University",295.20000001,2,33,"Virginias","University of Virginia",2,2,19,"MidPac","University of California, Davis ",1.1580000399999999,3,33,"NewEngland","Wenwroth Institute of Technology",4455000.0000000196,4,33,"MidCont","Kansas State University",4153500.00000002,2,33,"MidCont","University of Missouri-Kansas City",9419500.0000000503,1,33]
["MidAtlantic","Villanova University",null,"11.8.2","RockyMtn","Colorado School of Mines",19.55000003,3,34,"SoEast","Southern Polytechnic State University",307.20000011999997,5,34,"GreatLakes","University of Wisconsin at Madison",2,2,19,"Carolinas","Clemson University",1.1970000200000002,1,34,"Carolinas","Georgia Tech",4733333.3333333638,2,34,"MidWest","South Dakota State University",4179000.0000000601,3,34,"MidPac","University of California, Davis ",9476000.0000000391,2,34]
["Virginias","Virginia Miltary Institute",null,"11.8.2","SoEast","University of Alabama",20.916666726666666,7,35,"Metro","NJIT",315.50000003000002,1,35,"NewEngland","Wenwroth Institute of Technology",2,2,19,"Metro","NJIT",1.20000003,2,35,"MidWest","Lakehead University ",4850000.0000000298,3,35,"Metro","NJIT",4355000.0000000298,1,35,"MidAtlantic","Drexel University",9696500.0000000093,2,35]
["Virginias","Virginia Tech",null,"11.8.2","MidWest","South Dakota State University",20.966666726666666,3,36,"DeepSouth","Louisiana State University",319.00000001000001,1,36,"OhioValley","Youngstown State University",2,2,19,"Carolinas","Georgia Tech",1.2050000300000001,2,36,"SoEast","University of Puerto Rico - Mayaguez",4865000.0000000205,7,36,"SoEast","Southern Polytechnic State University",4422000.0000001201,5,36,"RockyMtn","Utah State University ",9779000.0000000894,3,36]
["NorthCentral","Western Michigan University",null,"11.8.2","MidCont","University of Missouri-Kansas City",21.70000005,1,37,"PacNW","Boise State University",357.00000009000001,4,37,"RockyMtn","Colorado School of Mines",3,3,37,"Virginias","George Washington University",1.20950004,1,37,"TexMex","Texas A&M University",4945000.0000000698,2,37,"UpstateNY","Cornell University",4430000.00000004,3,37,"MidCont","Kansas State University",9991000.0000000205,2,37]
["GreatLakes","Purdue University- Calumet",null,"9.2.8","MidAtlantic","Drexel University",22.350000010000002,2,38,"SoEast","University of Alabama",365.50000005999999,6,38,"Carolinas","Georgia Tech",3,3,37,"NewEngland","University of Laval",1.21700005,5,38,"NewEngland","Merrimack College",5463333.3333334327,5,38,"SoEast","University of Alabama",4745000.0000000596,6,38,"NewEngland","Merrimack College",10691333.333333433,5,38]
["PacNW","Boise State University",null,"None","NewEngland","Umass Amherst",22.766666756666666,5,39,"UpstateNY","Cornell University",381.00000003999997,3,39,"MidWest","Lakehead University ",3,3,37,"SoEast","University of Florida",1.21700008,4,39,"MidAtlantic","Drexel University",5587500.0000000102,2,39,"PacNW","Boise State University",4900000.0000000903,4,39,"SoEast","University of Alabama",11020000.00000006,7,39]
["RockyMtn","Brigham Young University",null,"None","MidPac","Tongji University ",23.000000069999999,3,40,"NewEngland","Merrimack College",398.00000010000002,5,40,"Metro","NJIT",3,3,37,"SoEast","University of Tennessee - Knoxville",1.2380000099999999,5,40,"TexMex","Universidad Autonoma del Estado de Mexico",5606666.6666666772,3,40,"MidPac","University of California, Davis ",5206000.00000004,2,40,"Carolinas","Georgia Tech",11112333.333333364,2,40]
["MidAtlantic","Bucknell University",null,"None","MidCont","Kansas State University",23.350000020000003,2,41,"MidPac","University of California, Davis ",404.80000003999999,2,41,"PacNW","Portland State University",3,3,37,"NewEngland","Merrimack College",1.2480001000000001,6,41,"MidPac","Tongji University ",5750000.0000000698,3,41,"NewEngland","Merrimack College",5228000.0000000997,5,41,"OhioValley","University of Louisville",11325000.000000048,3,41]
["PacSW","CALIFORNIA POLYTECHNIC STATE UNIVERSITY, SAN LUIS OBISPO",null,"None","OhioValley","University of Louisville",25.216666716666666,3,42,"MidPac","Tongji University ",437.20000006999999,3,42,"SoEast","Tennessee Technological University",3,3,37,"SoEast","University of Puerto Rico - Mayaguez",1.2600000200000001,6,42,"MidCont","Kansas State University",5837500.0000000196,1,42,"TexMex","University of Texas - San Antonio",5606500.0000000298,3,42,"PacNW","Boise State University",11662500.000000089,4,42]
["PacSW","CALIFORNIA STATE POLYTECHNIC UNIVERSITY, POMONA",null,"None","PacNW","Boise State University",27.050000090000001,4,43,"SoEast","University of Tennessee - Knoxville",443.00000001000001,7,43,"UpstateNY","United States Military Academy",3,3,37,"MidWest","University of Minnesota",1.2630000799999999,3,43,"RockyMtn","University of New Mexico",6117500.0000000997,4,43,"SoEast","University of Tennessee - Knoxville",5668000.0000000102,7,43,"MidPac","Tongji University ",11791000.000000071,3,43]
["MidPac","California State University, Chico ",null,"None","NewEngland","Merrimack College",27.316666766666668,6,44,"TexMex","University of Texas - San Antonio",454.40000003000006,3,44,"PacSW","UNIVERSITY OF CALIFORNIA, LOS ANGELES",3,3,37,"UpstateNY","Clarkson University",1.28000001,4,44,"SoEast","University of Alabama",6275000.0000000587,8,44,"MidPac","Tongji University ",6041000.0000000698,3,44,"TexMex","Universidad Autonoma del Estado de Mexico",12260166.666666677,3,44]
["PacSW","CALIFORNIA STATE UNIVERSITY, NORTHRIDGE",null,"None","MidWest","Mankato State University",27.666666756666668,4,45,"TexMex","Universidad Autonoma del Estado de Mexico",496.60000001000003,4,45,"MidAtlantic","University of Delaware",3,3,37,"MidCont","Kansas State University",1.3125000200000001,2,45,"MidCont","University of Missouri-Kansas City",6510000.0000000494,2,45,"RockyMtn","Utah State University ",6149000.0000000913,3,45,"DeepSouth","Louisiana State University",12614000.000000009,1,45]
["MidPac","California State University, Sacramento ",null,"None","TexMex","Universidad Autonoma del Estado de Mexico",28.033333343333336,3,46,"Carolinas","Georgia Tech",517.40000003,2,46,"GreatLakes","University of Illinois at Urbana-Champaign",3,3,37,"PacNW","Boise State University",1.33000009,3,46,"PacNW","Boise State University",6762500.0000000903,4,46,"Carolinas","Georgia Tech",6379000.0000000298,2,46,"NewEngland","Umass Amherst",14150000.000000089,6,46]
["OhioValley","Carnegie Mellon University",null,"None","DeepSouth","Louisiana State University",28.900000010000003,1,47,"RockyMtn","Utah State University ",556.40000009000005,3,47,"DeepSouth","University of Louisiana at Lafayette",3,3,37,"SoEast","Southern Polytechnic State University",1.35000012,7,47,"NewEngland","Umass Amherst",6830000.0000000903,6,47,"TexMex","Universidad Autonoma del Estado de Mexico",6653500.0000000102,4,47,"UpstateNY","Cornell University",15965000.000000039,3,47]
["NorthCentral","Case Western Reserve University",null,"None","UpstateNY","Clarkson University",30.033333343333336,3,48,"UpstateNY","Clarkson University",573.00000001000001,4,48,"NorthCentral","University of Michigan",3,3,37,"PacSW","UNIVERSITY OF NEVADA, LAS VEGAS",1.37500004,2,48,"MidCont","University of Missouri-Columbia",7305000.0000000307,3,48,"UpstateNY","Clarkson University",7010000.0000000102,4,48,"UpstateNY","Clarkson University",16020000.000000009,4,48]
["Virginias","Catholic University",null,"None","Carolinas","The Citadel",35.600000049999998,3,49,"NewEngland","Umass Amherst",593.50000008999996,6,49,"MidCont","University of Missouri-Columbia",3,3,37,"NewEngland","Umass Amherst",1.3850000899999999,7,49,"OhioValley","University of Louisville",7565000.0000000494,3,49,"DeepSouth","University of Louisiana at Lafayette",7271000.0000000298,2,49,"MidWest","Mankato State University",16848000.000000089,4,49]
["UpstateNY","Clarkson University",null,"None","NewEngland","Norwich University",37.366666736666666,7,50,"DeepSouth","University of Louisiana at Lafayette",645.80000002999998,2,50,"OhioValley","University of Pittsburgh",3,3,37,"MidAtlantic","Temple University",1.4540000499999999,2,50,"TexMex","University of Texas - Austin",7722500.0000000186,4,50,"NewEngland","Umass Amherst",7320000.0000000903,6,50,"Carolinas","The Citadel",17756000.000000048,3,50]
["Carolinas","Clemson University",null,"None","DeepSouth","University of Louisiana at Lafayette",37.600000030000004,2,51,"PacSW","UNIVERSITY OF HAWAII AT MANOA",700.00000005000004,3,51,"TexMex","University of Texas - San Antonio",3,3,37,"PacNW","Washington State University",1.4600000700000002,4,51,"MidPac","San Jose State University ",7876666.6666667173,4,51,"MidWest","Mankato State University",8548000.0000000894,4,51,"TexMex","University of Texas - San Antonio",18216500.00000003,4,51]
["OhioValley","Cleveland State University",null,"None","MidAtlantic","University of Delaware",38.250000030000002,3,52,"Carolinas","The Citadel",726.60000005000006,3,52,"MidPac","University of the Pacific ",3,3,37,"OhioValley","Youngstown State University",1.4800000200000005,2,52,"MidWest","Mankato State University",8300000.0000000903,4,52,"Carolinas","The Citadel",8856000.0000000503,3,52,"DeepSouth","University of Louisiana at Lafayette",18551000.00000003,2,52]
["RockyMtn","Colorado School of Mines",null,"None","UpstateNY","Cornell University",38.450000040000006,4,53,"MidWest","Mankato State University",782.00000008999996,4,53,"Virginias","West Virginia University",3,3,37,"MidWest","South Dakota State University",1.53900006,4,53,"MidAtlantic","University of Maryland",8540000.0000000708,3,53,"Metro","Manhattan College",10030000.000000039,2,53,"SoEast","Georgia Southern University",44119166.666666716,8,53]
["RockyMtn","Colorado State University",null,"None","RockyMtn","South Dakota School of Mines and Technology",39.166666686666673,4,54,"GreatLakes","University of Wisconsin at Madison",836.60000002000004,1,54,"NewEngland","Worcester Polytechnic Instititute",3,3,37,"Carolinas","The Citadel",1.5900000499999998,3,54,"DeepSouth","Louisiana State University",8670000.0000000093,2,54,"DeepSouth","University of Mississippi",10595000.000000039,3,54,"DeepSouth","Louisiana Tech",44436666.666666687,3,54]
["Metro","Columbia University",null,"None","MidPac","San Jose State University ",39.38333338333333,4,55,"MidPac","San Jose State University ",839.40000005000002,4,55,"RockyMtn","Brigham Young University",4,4,55,"OhioValley","University of Louisville",1.6100000499999993,3,55,"PacSW","CALIFORNIA STATE UNIVERSITY, NORTHRIDGE",8760000.0000000894,3,55,"Virginias","George Washington University",12001500.000000039,1,55,"RockyMtn","University of New Mexico",45081500.000000097,4,55]
["Metro","Cooper Union",null,"None","GreatLakes","University of Wisconsin at Madison",39.600000020000003,1,56,"PacNW","Oregon State University",858.00000005000004,5,56,"NorthCentral","Case Western Reserve University",4,4,55,"MidPac","Tongji University ",1.6690000700000001,4,56,"Carolinas","The Citadel",8900000.0000000503,3,56,"NewEngland","University of Hartford",12053000.00000011,7,56,"MidPac","San Jose State University ",46270666.666666716,4,56]
["UpstateNY","Cornell University",null,"None","Metro","Montreal",40.716666676666669,2,57,"PacSW","CALIFORNIA STATE UNIVERSITY, NORTHRIDGE",861.00000008999996,4,57,"OhioValley","Cleveland State University",4,4,55,"TexMex","Universidad Autonoma del Estado de Mexico",1.6875000099999999,4,57,"UpstateNY","Clarkson University",9010000.0000000093,3,57,"MidPac","University of the Pacific ",13015000.00000003,4,57,"PacSW","CALIFORNIA STATE UNIVERSITY, NORTHRIDGE",47370000.000000089,3,57]
["MidAtlantic","Drexel University",null,"None","RockyMtn","University of New Mexico",40.783333433333333,5,58,"UpstateNY","SUNY At Buffalo",867.00000007000006,5,58,"UpstateNY","Cornell University",4,4,55,"OhioValley","Carnegie Mellon University",1.8600000999999995,4,58,"MidAtlantic","Lehigh University",9477500.0000000801,4,58,"OhioValley","Carnegie Mellon University",15360000.000000101,4,58,"GreatLakes","University of Wisconsin at Madison",48266000.000000022,1,58]
["UpstateNY","Ecole de Technologie Superieure International",null,"None","RockyMtn","Colorado State University",41.716666746666668,6,59,"Virginias","Catholic University",868.20000005000009,1,59,"Virginias","George Washington University",4,4,55,"MidPac","California State University, Sacramento ",30.000000010000001,5,59,"PacSW","UNIVERSITY OF CALIFORNIA, LOS ANGELES",9860000.0000000298,4,59,"PacSW","UNIVERSITY OF HAWAII AT MANOA",37000000.000000052,3,59,"MidCont","University of Missouri-Columbia",48288000.00000003,3,59]
["SoEast","FAMU-FSU College of Engineering",null,"None","TexMex","University of Texas - San Antonio",42.033333363333334,4,60,"PacNW","University of British Columbia",877.00000002000002,6,60,"PacNW","Idaho State University",4,4,55,"MidWest","Iowa State University",30.000000010000001,5,59,"GreatLakes","University of Wisconsin at Madison",9900000.0000000205,1,60,"GreatLakes","University of Wisconsin at Madison",38366000.000000022,1,60,"TexMex","University of Texas - Austin",48396500.000000022,5,60]
["SoEast","Florida Institute of Technology",null,"None","MidAtlantic","Lafayette College",42.150000059999996,4,61,"PacSW","UNIVERSITY OF ARIZONA",880.00000002000002,5,61,"Metro","Manhattan College",4,4,55,"Virginias","Marshall University",30.000000010000001,2,59,"MidCont","University of Nebraska-Lincoln at Omaha",10296666.666666737,4,61,"MidPac","San Jose State University ",38394000.000000052,5,61,"PacSW","UNIVERSITY OF HAWAII AT MANOA",48845833.333333381,4,61]
["Virginias","George Washington University",null,"None","MidAtlantic","Pennsylvania State University - University Park",42.18333337333334,5,62,"RockyMtn","University of New Mexico",896.40000009999994,4,62,"GreatLakes","Notre Dame University",4,4,55,"GreatLakes","Milwaukee School of Engineering",30.000000010000001,1,59,"MidAtlantic","Lafayette College",10537500.00000006,5,62,"PacNW","Oregon State University",38580000.000000052,5,62,"MidAtlantic","Lehigh University",49781500.000000082,3,62]
["SoEast","Georgia Southern University",null,"None","PacSW","CALIFORNIA STATE UNIVERSITY, NORTHRIDGE",43.800000089999997,3,63,"PacSW","NORTHERN ARIZONA UNIVERSITY",900.00000007999995,6,63,"MidAtlantic","Pennsylvania State University - University Park",4,4,55,"MidCont","Missouri University of Science and Technology",30.000000010000001,3,59,"SoEast","University of Central Florida",10625000.000000039,9,63,"PacSW","CALIFORNIA STATE UNIVERSITY, NORTHRIDGE",38610000.000000089,4,63,"PacSW","UNIVERSITY OF CALIFORNIA, LOS ANGELES",49860000.00000003,5,63]
["Carolinas","Georgia Tech",null,"None","MidWest","Iowa State University",44.450000010000004,5,64,"MidWest","Iowa State University",901.00000001000001,5,64,"TexMex","Southern Methodist University",4,4,55,"Metro","Montreal",30.000000010000001,3,59,"RockyMtn","University of Colorado-Boulder",11196666.666666675,5,64,"UpstateNY","SUNY At Buffalo",38670000.000000067,5,64,"PacNW","Oregon State University",50296666.666666716,5,64]
["UpstateNY","Hudson Valley Community College",null,"None","MidWest","University of North Dakota",45.566666686666665,6,65,"OhioValley","Western Kentucky University",906.00000005000004,4,65,"MidPac","University of California, Davis ",4,4,55,"Carolinas","North Carolina State University",30.000000010000001,4,59,"NewEngland","Norwich University",11210000.000000071,7,65,"Virginias","Catholic University",38682000.000000052,2,65,"MidAtlantic","University of Maryland",50346000.000000067,4,65]
["PacNW","Idaho State University",null,"None","OhioValley","Western Kentucky University",45.63333338333333,4,{"$f":"RANK(G70,G$5:G$164,1)","v":66},"MidAtlantic","University of Delaware",906.60000003000005,3,{"$f":"RANK(L70,L$5:L$164,1)","v":66},"SoEast","University of Central Florida",4,4,{"$f":"RANK(R70,R$5:R$164,1)","v":55},"RockyMtn","University of Colorado-Boulder",30.000000010000001,4,{"$f":"RANK(V70,V$5:V$164,1)","v":59},"DeepSouth","University of Louisiana at Lafayette",11280000.000000032,3,{"$f":"RANK(AA70,AA$5:AA$164,1)","v":66},"PacNW","University of British Columbia",38770000.000000022,6,{"$f":"RANK(AF70,AF$5:AF$164,1)","v":66},"MidAtlantic","University of Delaware",50541000.00000003,5,{"$f":"RANK(AK70,AK$5:AK$164,1)","v":66}]
["MidWest","Iowa State University",null,"None","MidCont","University of Nebraska-Lincoln",46.11666670666667,3,67,"GreatLakes","Milwaukee School of Engineering",918.00000001000001,2,67,"DeepSouth","University of Mississippi",4,4,55,"NewEngland","University of Vermont",30.000000010000001,8,59,"MidAtlantic","University of Delaware",11475000.00000003,6,67,"PacSW","UNIVERSITY OF ARIZONA",38800000.000000022,5,67,"MidAtlantic","Lafayette College",50815500.00000006,6,67]
["MidCont","Kansas State University",null,"None","PacNW","University of British Columbia",46.250000020000002,5,68,"NewEngland","Umass Lowell",919.00000005000004,7,68,"MidCont","University of Nebraska-Lincoln",4,4,55,"DeepSouth","Louisiana Tech",30.000000020000002,4,68,"NewEngland","University of Vermont",11476666.666666675,8,68,"RockyMtn","University of New Mexico",38964000.000000097,4,68,"RockyMtn","South Dakota School of Mines and Technology",51174000.000000022,5,68]
["MidAtlantic","Lafayette College",null,"None","Metro","NYC College of Technology",46.316666736666662,3,69,"MidAtlantic","Pennsylvania State University - University Park",940.40000004000001,4,69,"PacSW","UNIVERSITY OF NEVADA, LAS VEGAS",4,4,55,"NorthCentral","Michigan State University",30.000000020000002,3,68,"MidCont","University of Nebraska-Lincoln",11529166.666666707,5,69,"PacSW","NORTHERN ARIZONA UNIVERSITY",39000000.000000082,6,69,"Metro","Montreal",51895000.000000007,2,69]
["MidWest","Lakehead University ",null,"None","PacSW","UNIVERSITY OF HAWAII AT MANOA",47.38333338333333,4,70,"RockyMtn","South Dakota School of Mines and Technology",942.40000001999999,5,70,"NewEngland","University of New Hampshire",4,4,55,"RockyMtn","South Dakota School of Mines and Technology",30.000000020000002,5,68,"UpstateNY","Cornell University",11535000.000000039,4,70,"MidWest","Iowa State University",39010000.000000007,5,70,"SoEast","University of Central Florida",52026000.000000037,9,70]
["NorthCentral","Lawrence Technological University",null,"None","MidAtlantic","University of Pittsburgh - Johnstown",47.683333353333339,6,71,"MidCont","Southern Illinois University Edwardsville",944.00000006000005,3,71,"Carolinas","University of South Carolina",4,4,55,"Metro","The College of New Jersey",30.000000020000002,4,68,"PacNW","Oregon State University",11716666.666666716,5,71,"OhioValley","Western Kentucky University",39060000.000000052,5,71,"MidAtlantic","Pennsylvania State University - University Park",52059000.000000037,7,71]
["MidAtlantic","Lehigh University",null,"None","MidWest","University of Wisconsin, Platteville",48.18333337333334,7,72,"UpstateNY","United States Military Academy",950.00000003000002,6,72,"MidWest","University of Wisconsin, Platteville",4,4,55,"PacSW","UNIVERSITY OF ARIZONA",30.000000020000002,3,68,"RockyMtn","South Dakota School of Mines and Technology",11750000.000000022,6,72,"MidAtlantic","University of Delaware",39066000.00000003,3,72,"NewEngland","Norwich University",52185000.000000067,7,72]
["DeepSouth","Louisiana State University",null,"None","PacSW","CALIFORNIA STATE POLYTECHNIC UNIVERSITY, POMONA",48.516666716666663,5,73,"MidWest","University of Wisconsin, Platteville",951.00000004000003,6,73,"PacSW","CALIFORNIA STATE POLYTECHNIC UNIVERSITY, POMONA",5,5,73,"PacNW","University of British Columbia",30.000000020000002,5,68,"PacSW","UNIVERSITY OF HAWAII AT MANOA",11845833.333333382,5,73,"GreatLakes","Milwaukee School of Engineering",39180000.000000007,2,73,"MidWest","Iowa State University",52345000.000000007,5,73]
["DeepSouth","Louisiana Tech",null,"None","MidCont","University of Missouri-Columbia",48.700000030000005,4,74,"Metro","Montreal",968.00000001000001,2,74,"Virginias","Catholic University",5,5,73,"MidWest","University of North Dakota",30.000000020000002,6,68,"Metro","Montreal",12215000.000000009,2,74,"NewEngland","Umass Lowell",39190000.000000052,8,74,"PacNW","University of British Columbia",52645000.000000022,6,74]
["Metro","Manhattan College",null,"None","GreatLakes","Milwaukee School of Engineering",48.783333343333332,2,75,"MidPac","California State University, Sacramento ",970.80000000999996,5,75,"Metro","Cooper Union",5,5,73,"MidAtlantic","University of Pittsburgh - Johnstown",30.000000020000002,3,68,"RockyMtn","University of Utah",12326666.666666737,7,75,"MidAtlantic","Pennsylvania State University - University Park",39404000.000000037,4,75,"OhioValley","Western Kentucky University",52750000.000000052,4,75]
["MidWest","Mankato State University",null,"None","NorthCentral","Lawrence Technological University",49.050000049999994,3,76,"NorthCentral","Michigan State University",972.00000002000002,3,76,"SoEast","Georgia Southern University",5,5,73,"TexMex","University of Texas - Austin",30.000000020000002,5,68,"MidCont","Missouri University of Science and Technology",12437500.000000009,6,76,"RockyMtn","South Dakota School of Mines and Technology",39424000.000000022,5,76,"MidCont","University of Nebraska-Lincoln at Omaha",53237666.666666731,4,76]
["Virginias","Marshall University",null,"None","Metro","The College of New Jersey",49.516666686666667,4,77,"Metro","Manhattan College",972.00000004000003,3,77,"NorthCentral","Lawrence Technological University",5,5,73,"Virginias","University of Virginia",30.000000020000002,3,68,"RockyMtn","Colorado State University",12515000.00000008,8,77,"MidCont","Southern Illinois University Edwardsville",39440000.00000006,3,77,"UpstateNY","SUNY At Buffalo",53530000.000000067,5,77]
["NewEngland","Massachusetts Institute of Technology",null,"None","DeepSouth","Louisiana Tech",49.533333353333333,3,78,"PacSW","CALIFORNIA STATE POLYTECHNIC UNIVERSITY, POMONA",975.00000005000004,7,78,"RockyMtn","New Mexico Institute of Mining and Technology",5,5,73,"GreatLakes","University of Wisconsin at Madison",30.000000020000002,2,68,"TexMex","University of Texas - San Antonio",12610000.00000003,5,78,"UpstateNY","United States Military Academy",39500000.00000003,6,78,"MidCont","Missouri University of Science and Technology",53711500.000000007,5,78]
["NewEngland","Merrimack College",null,"None","UpstateNY","SUNY At Buffalo",49.53333340333333,5,79,"TexMex","Universidad La Salle Cuernavaca",992.80000006,5,79,"MidWest","North Dakota State University",5,5,73,"SoEast","Tennessee Technological University",30.000000029999999,8,79,"MidAtlantic","Pennsylvania State University - University Park",12655000.000000041,7,79,"MidWest","University of Wisconsin, Platteville",39510000.000000037,6,79,"SoEast","University of Miami",53769500.000000067,10,79]
["NorthCentral","Michigan State University",null,"None","MidCont","Missouri University of Science and Technology",49.750000010000001,5,80,"PacSW","UNIVERSITY OF CALIFORNIA, LOS ANGELES",1000.00000003,8,80,"PacNW","Oregon State University",5,5,73,"UpstateNY","United States Military Academy",30.000000029999999,5,79,"SoEast","University of Miami",12687500.000000071,10,80,"Metro","Montreal",39680000.000000007,3,80,"GreatLakes","Milwaukee School of Engineering",53815000.000000007,2,80]
["NorthCentral","Michigan Technological University",null,"None","GreatLakes","University of Illinois at Urbana-Champaign",50.200000030000005,3,81,"UpstateNY","Rensselaer Polytechnic Institute",1000.0000000799999,7,81,"MidPac","San Jose State University ",5,5,73,"PacSW","UNIVERSITY OF CALIFORNIA, LOS ANGELES",30.000000029999999,4,79,"MidCont","University of Kansas",12837500.000000101,7,81,"MidPac","California State University, Sacramento ",39708000.000000007,6,81,"MidWest","University of Wisconsin, Platteville",53965000.000000037,6,81]
["GreatLakes","Milwaukee School of Engineering",null,"None","NewEngland","Worcester Polytechnic Instititute",50.233333363333337,8,82,"DeepSouth","University of Mississippi",1002.80000004,3,82,"UpstateNY","SUNY College Of Technology at Canton",5,5,73,"MidAtlantic","University of Delaware",30.000000029999999,4,79,"PacNW","Idaho State University",13062500.000000039,6,82,"NorthCentral","Michigan State University",39720000.000000022,3,82,"NewEngland","University of Vermont",54001666.666666672,8,82]
["MidCont","Missouri University of Science and Technology",null,"None","SoEast","University of Miami",50.750000069999999,8,83,"MidWest","University of Iowa",1007.00000006,7,83,"MidAtlantic","Temple University",5,5,73,"GreatLakes","University of Illinois at Urbana-Champaign",30.000000029999999,3,79,"TexMex","Texas A&M University - Kingsville",13075000.000000101,6,83,"PacSW","CALIFORNIA STATE POLYTECHNIC UNIVERSITY, POMONA",39750000.000000052,7,83,"PacSW","CALIFORNIA STATE POLYTECHNIC UNIVERSITY, POMONA",54305000.000000052,6,83]
["PacNW","Montana Tech",null,"None","MidCont","University of Kansas",51.350000100000003,6,84,"Metro","Columbia University",1014.00000006,4,84,"Carolinas","The Citadel",5,5,73,"MidCont","University of Missouri-Columbia",30.000000029999999,4,79,"MidWest","Iowa State University",13335000.000000011,5,84,"TexMex","Universidad La Salle Cuernavaca",39928000.00000006,5,84,"MidCont","University of Nebraska-Lincoln",54536166.666666709,6,84]
["Metro","Montreal",null,"None","TexMex","University of Texas - Austin",51.483333353333336,5,85,"MidAtlantic","Lafayette College",1027.80000006,5,85,"NewEngland","Umass Lowell",5,5,73,"OhioValley","University of Pittsburgh",30.000000029999999,5,79,"RockyMtn","University of Colorado-Denver",13337500.000000119,9,85,"PacSW","UNIVERSITY OF CALIFORNIA, LOS ANGELES",40000000.00000003,8,85,"RockyMtn","University of Utah",54556666.666666731,6,85]
["RockyMtn","New Mexico Institute of Mining and Technology",null,"None","MidCont","University of Nebraska-Lincoln at Omaha",51.483333403333333,7,86,"MidAtlantic","Lehigh University",1030.4000000800002,6,86,"PacSW","UNIVERSITY OF HAWAII AT MANOA",5,5,73,"Virginias","West Virginia University",30.000000029999999,4,79,"MidWest","North Dakota State University",13375000.00000005,6,86,"UpstateNY","Rensselaer Polytechnic Institute",40000000.000000082,7,86,"RockyMtn","University of Colorado-Boulder",54564666.666666672,7,86]
["RockyMtn","New Mexico State University",null,"None","Carolinas","North Carolina State University",51.500000010000001,4,87,"OhioValley","Ohio State University",1062.00000009,5,87,"NewEngland","University of Laval",5,5,73,"NewEngland","Worcester Polytechnic Instititute",30.000000029999999,9,79,"PacNW","University of Washington",13658333.333333435,7,87,"MidWest","University of Iowa",40070000.00000006,7,87,"RockyMtn","Colorado State University",54847000.000000082,8,87]
["Metro","NJIT",null,"None","PacNW","Idaho State University",52.250000040000003,6,88,"TexMex","University of Texas - Austin",1067.4000000200001,6,88,"OhioValley","University of Louisville",5,5,73,"NorthCentral","Case Western Reserve University",30.00000004,4,88,"MidWest","University of North Dakota",13670000.000000019,7,88,"Metro","Columbia University",40140000.00000006,4,88,"MidWest","University of North Dakota",55030000.000000022,7,88]
["Carolinas","North Carolina State University",null,"None","TexMex","Texas A&M University - Kingsville",52.300000099999998,6,89,"OhioValley","University of Pittsburgh",1079.0000000299999,6,89,"DeepSouth","University of Memphis",5,5,73,"OhioValley","Cleveland State University",30.00000004,6,88,"OhioValley","Western Kentucky University",13690000.00000005,4,89,"MidAtlantic","Lafayette College",40278000.00000006,5,89,"MidWest","North Dakota State University",55215000.000000052,8,89]
["MidWest","North Dakota State University",null,"None","RockyMtn","University of Colorado-Denver",53.350000120000004,7,90,"Virginias","George Washington University",1079.2000000400001,2,90,"MidCont","University of Missouri-Kansas City",5,5,73,"PacNW","Idaho State University",30.00000004,6,88,"PacNW","University of British Columbia",13875000.00000002,8,90,"MidAtlantic","Lehigh University",40304000.000000082,6,90,"Virginias","Catholic University",55223666.666666716,1,90]
["PacSW","NORTHERN ARIZONA UNIVERSITY",null,"None","MidWest","North Dakota State University",53.500000049999997,8,91,"NewEngland","University of Hartford",1094.00000011,8,91,"TexMex","University of Texas - El Paso",5,5,73,"GreatLakes","Notre Dame University",30.00000004,4,88,"Metro","NYC College of Technology",13895000.000000069,3,91,"OhioValley","Ohio State University",40620000.000000089,6,91,"NewEngland","Umass Lowell",55365000.000000052,9,91]
["NewEngland","Norwich University",null,"None","MidPac","California State University, Sacramento ",53.533333343333332,5,92,"SoEast","Georgia Southern University",1096.0000000499999,8,92,"OhioValley","Western Kentucky University",5,5,73,"MidAtlantic","Pennsylvania State University - University Park",30.00000004,5,88,"SoEast","FAMU-FSU College of Engineering",14137500.00000013,11,92,"TexMex","University of Texas - Austin",40674000.000000022,6,92,"RockyMtn","University of Colorado-Denver",55388500.000000119,9,92]
["GreatLakes","Notre Dame University",null,"None","Metro","Columbia University",53.866666726666665,5,93,"NewEngland","Norwich University",1097.5000000699999,9,93,"Metro","Columbia University",6,6,93,"SoEast","University of Central Florida",30.00000004,9,88,"Metro","Cooper Union",14225000.00000005,4,93,"OhioValley","University of Pittsburgh",40790000.00000003,7,93,"SoEast","FAMU-FSU College of Engineering",55461500.000000127,11,93]
["Metro","NYC College of Technology",null,"None","NewEngland","Umass Lowell",53.916666716666668,9,94,"MidCont","University of Missouri-Columbia",1098.3000000299999,4,94,"UpstateNY","Hudson Valley Community College",6,6,93,"MidCont","University of Nebraska-Lincoln",30.00000004,5,88,"MidAtlantic","University of Pittsburgh - Johnstown",14305000.000000022,8,94,"SoEast","Georgia Southern University",40960000.000000052,8,94,"Metro","NYC College of Technology",55505000.000000067,3,94]
["OhioValley","Ohio State University",null,"None","PacNW","University of Washington",54.633333433333334,7,95,"SoEast","University of Miami",1108.20000007,9,95,"MidAtlantic","Lafayette College",6,6,93,"Carolinas","University of South Carolina",30.00000004,5,88,"NorthCentral","Wayne State University",14383333.333333392,3,95,"NewEngland","Norwich University",40975000.000000067,9,95,"PacNW","University of Washington",55688333.333333433,7,95]
["OhioValley","Ohio University",null,"None","OhioValley","Ohio State University",55.100000090000002,5,96,"PacNW","University of Idaho",1121.00000006,7,96,"MidWest","South Dakota State University",6,6,93,"MidWest","University of Wisconsin, Platteville",30.00000004,7,88,"MidWest","University of Wisconsin, Platteville",14455000.000000041,8,96,"MidCont","University of Missouri-Columbia",40983000.00000003,4,96,"MidPac","California State University, Sacramento ",55768000.000000007,5,96]
["PacNW","Oregon State University",null,"None","SoEast","Tennessee Technological University",55.583333363333331,9,97,"MidCont","Missouri University of Science and Technology",1127.40000001,5,97,"MidCont","Southern Illinois University Edwardsville",6,6,93,"PacSW","CALIFORNIA STATE POLYTECHNIC UNIVERSITY, POMONA",30.000000050000001,5,97,"PacSW","CALIFORNIA STATE POLYTECHNIC UNIVERSITY, POMONA",14555000.000000052,6,97,"SoEast","University of Miami",41082000.000000067,9,97,"MidCont","University of Kansas",55814500.000000097,7,97]
["MidAtlantic","Pennsylvania State University - University Park",null,"None","UpstateNY","Hudson Valley Community College",56.433333393333335,6,98,"GreatLakes","University of Illinois at Urbana-Champaign",1130.6000000299998,3,98,"TexMex","Universidad La Salle Cuernavaca",6,6,93,"Virginias","Catholic University",30.000000050000001,5,97,"GreatLakes","Milwaukee School of Engineering",14635000.000000009,2,98,"PacNW","University of Idaho",41210000.00000006,7,98,"MidAtlantic","University of Pittsburgh - Johnstown",55845000.000000022,8,98]
["PacNW","Portland State University",null,"None","SoEast","FAMU-FSU College of Engineering",56.550000129999994,10,99,"SoEast","FAMU-FSU College of Engineering",1132.4000001300001,10,99,"SoEast","University of Alabama",6,6,93,"Metro","Cooper Union",30.000000050000001,5,97,"NorthCentral","Lawrence Technological University",14715000.000000048,4,99,"MidCont","Missouri University of Science and Technology",41274000.000000007,5,99,"NorthCentral","Lawrence Technological University",56070000.000000052,3,99]
["UpstateNY","Rensselaer Polytechnic Institute",null,"None","Metro","Cooper Union",56.900000049999996,6,100,"NorthCentral","Lawrence Technological University",1135.5000000499999,4,100,"PacNW","University of Idaho",6,6,93,"SoEast","Georgia Southern University",30.000000050000001,10,97,"Metro","The College of New Jersey",14855000.000000022,5,100,"GreatLakes","University of Illinois at Urbana-Champaign",41306000.00000003,3,100,"Metro","Columbia University",56300000.00000006,4,100]
["PacSW","SAN DIEGO STATE UNIVERSITY",null,"None","MidAtlantic","University of Maryland",56.933333403333329,7,101,"MidWest","University of North Dakota",1136.00000002,8,101,"MidWest","University of Iowa",6,6,93,"NorthCentral","Lawrence Technological University",30.000000050000001,5,97,"UpstateNY","SUNY At Buffalo",14860000.000000071,5,101,"SoEast","FAMU-FSU College of Engineering",41324000.000000127,10,101,"GreatLakes","University of Illinois at Urbana-Champaign",56366000.00000003,3,101]
["MidPac","San Francisco State University ",null,"None","TexMex","University of Texas - Arlington",57.066666756666663,7,102,"SoEast","University of Central Florida",1140.1000000399999,11,102,"MidPac","University of Nevada, Reno ",6,6,93,"RockyMtn","New Mexico Institute of Mining and Technology",30.000000050000001,6,97,"SoEast","University of South Alabama",15045833.333333462,12,102,"NorthCentral","Lawrence Technological University",41355000.000000052,4,102,"Metro","The College of New Jersey",56435000.000000022,5,102]
["MidPac","San Jose State University ",null,"None","NewEngland","University of Vermont",57.383333343333334,10,103,"MidAtlantic","University of Pittsburgh - Johnstown",1154.00000002,7,103,"Carolinas","University of North Carolina at Charlotte",6,6,93,"MidWest","North Dakota State University",30.000000050000001,8,97,"GreatLakes","University of Illinois at Urbana-Champaign",15060000.000000032,3,103,"MidWest","University of North Dakota",41360000.000000022,8,103,"PacNW","Idaho State University",56672500.000000037,8,103]
["RockyMtn","South Dakota School of Mines and Technology",null,"None","PacSW","SAN DIEGO STATE UNIVERSITY",57.416666776666673,6,104,"Metro","The College of New Jersey",1158.00000002,5,104,"RockyMtn","University of Wyoming",6,6,93,"PacNW","Oregon State University",30.000000050000001,7,97,"NewEngland","Worcester Polytechnic Instititute",15070000.000000028,9,104,"SoEast","University of Central Florida",41401000.000000037,11,104,"NorthCentral","Michigan State University",57090000.000000022,4,104]
["MidWest","South Dakota State University",null,"None","NorthCentral","Wayne State University",57.533333393333329,4,105,"DeepSouth","University of Memphis",1158.8000000499999,4,105,"NorthCentral","Wayne State University",6,6,93,"MidPac","San Jose State University ",30.000000050000001,6,97,"MidPac","California State University, Chico ",15145833.333333412,5,105,"MidAtlantic","University of Pittsburgh - Johnstown",41540000.000000022,7,105,"NorthCentral","Wayne State University",57138333.333333388,5,105]
["MidCont","Southern Illinois University Carbondale",null,"None","NorthCentral","Michigan State University",57.90000002,5,106,"Metro","NYC College of Technology",1161.0000000699999,6,106,"Virginias","WVU Institute of Technology",6,6,93,"NewEngland","Umass Lowell",30.000000050000001,10,97,"Carolinas","North Carolina State University",15450000.000000009,4,106,"Metro","The College of New Jersey",41580000.000000022,5,106,"OhioValley","Ohio State University",57150000.000000089,5,106]
["MidCont","Southern Illinois University Edwardsville",null,"None","PacNW","University of Idaho",58.333333393333326,8,107,"TexMex","Southern Methodist University",1167.00000004,7,107,"NewEngland","Norwich University",7,7,107,"PacSW","UNIVERSITY OF HAWAII AT MANOA",30.000000050000001,5,97,"RockyMtn","New Mexico Institute of Mining and Technology",15729166.666666718,10,107,"DeepSouth","University of Memphis",41588000.000000052,4,107,"MidPac","California State University, Chico ",57195833.33333341,6,107]
["TexMex","Southern Methodist University",null,"None","PacNW","Oregon State University",58.583333383333326,9,108,"MidAtlantic","University of Maryland",1180.6000000699999,8,108,"Metro","NYC College of Technology",7,7,107,"DeepSouth","University of Memphis",30.000000050000001,5,97,"SoEast","University of North Florida",15800000.00000011,13,108,"Metro","NYC College of Technology",41610000.000000067,6,108,"RockyMtn","New Mexico Institute of Mining and Technology",57585166.666666724,10,108]
["SoEast","Southern Polytechnic State University",null,"None","MidCont","St. Louis University",59.116666756666667,8,109,"MidWest","North Dakota State University",1184.0000000499999,9,109,"OhioValley","Ohio University",7,7,107,"OhioValley","Western Kentucky University",30.000000050000001,7,97,"PacSW","UNIVERSITY OF CALIFORNIA, SAN DIEGO",15887500.000000101,7,109,"MidAtlantic","University of Maryland",41806000.000000067,8,109,"NewEngland","Worcester Polytechnic Instititute",57770000.00000003,10,109]
["MidCont","St. Louis University",null,"None","SoEast","University of South Alabama",60.183333463333327,11,110,"RockyMtn","New Mexico Institute of Mining and Technology",1185.6000000499998,6,110,"UpstateNY","SUNY At Buffalo",7,7,107,"Metro","Columbia University",30.000000060000001,6,110,"MidPac","California State University, Sacramento ",16060000.000000009,6,110,"MidWest","North Dakota State University",41840000.000000052,9,110,"MidCont","Southern Illinois University Edwardsville",58375000.00000006,8,110]
["UpstateNY","SUNY At Buffalo",null,"None","MidPac","California State University, Chico ",60.583333413333328,6,111,"DeepSouth","Louisiana Tech",1196.00000002,5,111,"TexMex","Texas A&M University",7,7,107,"UpstateNY","Hudson Valley Community College",30.000000060000001,6,110,"Metro","Columbia University",16160000.00000006,6,111,"RockyMtn","New Mexico Institute of Mining and Technology",41856000.000000052,6,111,"PacNW","University of Idaho",58710000.00000006,9,111]
["UpstateNY","SUNY College Of Technology at Canton",null,"None","OhioValley","University of Cincinnati",60.883333413333332,6,112,"MidPac","University of the Pacific ",1198.8000000299999,6,112,"MidPac","Tongji University ",7,7,107,"MidAtlantic","Lafayette College",30.000000060000001,6,110,"NewEngland","Umass Lowell",16175000.00000005,10,112,"DeepSouth","Louisiana Tech",41960000.000000022,5,112,"SoEast","University of South Alabama",58827833.333333455,12,112]
["MidAtlantic","Temple University",null,"None","OhioValley","University of Pittsburgh",61.066666696666665,7,113,"PacNW","University of Washington",1203.0000001000001,8,113,"MidAtlantic","University of Maryland",7,7,107,"MidCont","Southern Illinois University Edwardsville",30.000000060000001,6,110,"OhioValley","Ohio State University",16530000.000000091,5,113,"PacNW","University of Washington",42030000.000000097,8,113,"OhioValley","University of Pittsburgh",59110000.00000003,6,113]
["SoEast","Tennessee Technological University",null,"None","SoEast","Florida Institute of Technology",61.133333493333332,12,114,"MidPac","California State University, Chico ",1205.0000000800001,7,114,"SoEast","University of Miami",7,7,107,"TexMex","Universidad La Salle Cuernavaca",30.000000060000001,6,110,"Virginias","Catholic University",16541666.666666713,1,114,"MidPac","California State University, Chico ",42050000.000000082,7,114,"Carolinas","North Carolina State University",59314000.000000007,4,114]
["TexMex","Texas A&M University",null,"None","RockyMtn","University of Utah",61.633333403333332,8,115,"RockyMtn","University of Colorado-Denver",1205.10000012,7,115,"MidCont","University of Nebraska-Lincoln at Omaha",7,7,107,"PacNW","University of Idaho",30.000000060000001,8,110,"SoEast","Tennessee Technological University",16675000.00000003,14,115,"RockyMtn","University of Colorado-Denver",42051000.000000119,7,115,"PacSW","UNIVERSITY OF CALIFORNIA, SAN DIEGO",59507500.000000097,7,115]
["TexMex","Texas A&M University - Kingsville",null,"None","RockyMtn","New Mexico State University",62.333333443333331,9,116,"RockyMtn","University of Wyoming",1218.00000006,8,116,"PacSW","UNIVERSITY OF SOUTHERN CALIFORNIA",7,7,107,"MidWest","University of Iowa",30.000000060000001,9,110,"UpstateNY","Hudson Valley Community College",16930000.00000006,6,116,"RockyMtn","University of Wyoming",42180000.00000006,8,116,"SoEast","Tennessee Technological University",59842000.00000003,13,116]
["Carolinas","The Citadel",null,"None","RockyMtn","New Mexico Institute of Mining and Technology",62.916666716666668,10,117,"RockyMtn","University of Utah",1223.0000000699999,9,117,"RockyMtn","University of Utah",7,7,107,"MidPac","University of Nevada, Reno ",30.000000060000001,7,110,"TexMex","University of Texas - Arlington",17120000.000000089,7,117,"RockyMtn","University of Utah",42230000.000000067,9,117,"Metro","Cooper Union",59845000.000000052,6,117]
["Metro","The College of New Jersey",null,"None","MidCont","Southern Illinois University Edwardsville",63.116666726666665,9,118,"SoEast","Florida Institute of Technology",1227.8000001599999,12,118,"PacNW","Washington State University",7,7,107,"Carolinas","University of North Carolina at Charlotte",30.000000060000001,6,110,"PacSW","SAN DIEGO STATE UNIVERSITY",17225000.000000112,8,118,"SoEast","Florida Institute of Technology",42278000.000000156,12,118,"SoEast","University of North Florida",59948000.000000112,14,118]
["MidPac","Tongji University ",null,"None","SoEast","Georgia Southern University",63.183333383333334,13,119,"RockyMtn","Colorado State University",1233.2000000800001,10,119,"MidPac","California State University, Chico ",8,8,119,"RockyMtn","University of Wyoming",30.000000060000001,7,110,"NorthCentral","Michigan State University",17370000.000000019,5,119,"RockyMtn","Colorado State University",42332000.000000082,10,119,"PacSW","SAN DIEGO STATE UNIVERSITY",60305000.000000112,8,119]
["NewEngland","Umass Amherst",null,"None","MidAtlantic","Lehigh University",63.183333413333337,8,120,"NewEngland","University of Vermont",1252.5000000099999,10,120,"RockyMtn","Colorado State University",8,8,119,"NorthCentral","Wayne State University",30.000000060000001,6,110,"PacNW","University of Idaho",17500000.00000006,9,120,"NewEngland","University of Vermont",42525000.000000007,10,120,"UpstateNY","Hudson Valley Community College",60420000.00000006,6,120]
["NewEngland","Umass Lowell",null,"None","SoEast","University of North Florida",63.200000110000005,14,121,"NorthCentral","Case Western Reserve University",1265.50000004,5,121,"MidAtlantic","Lehigh University",8,8,119,"Virginias","WVU Institute of Technology",30.000000060000001,6,110,"MidCont","St. Louis University",17735000.000000089,8,121,"NorthCentral","Case Western Reserve University",42655000.000000037,5,121,"SoEast","Florida Institute of Technology",60618000.000000156,15,121]
["UpstateNY","United States Military Academy",null,"None","Virginias","WVU Institute of Technology",63.316666726666661,1,122,"NewEngland","Worcester Polytechnic Instititute",1270.0000000299999,11,122,"NewEngland","Massachusetts Institute of Technology",8,8,119,"NewEngland","Norwich University",30.000000069999999,11,122,"TexMex","Southern Methodist University",18133333.333333373,8,122,"NewEngland","Worcester Polytechnic Instititute",42700000.00000003,11,122,"DeepSouth","University of Memphis",60643000.000000052,4,122]
["TexMex","Universidad Autonoma del Estado de Mexico",null,"None","DeepSouth","University of Memphis",63.516666716666663,4,123,"NorthCentral","Wayne State University",1275.50000006,6,123,"PacNW","Montana Tech",8,8,119,"Metro","NYC College of Technology",30.000000069999999,7,122,"OhioValley","University of Cincinnati",18265000.000000078,6,123,"NorthCentral","Wayne State University",42755000.00000006,6,123,"TexMex","University of Texas - Arlington",60772000.000000089,6,123]
["TexMex","Universidad La Salle Cuernavaca",null,"None","PacSW","UNIVERSITY OF CALIFORNIA, SAN DIEGO",63.550000099999998,7,124,"MidCont","University of Nebraska-Lincoln at Omaha",1294.1000000699999,6,124,"PacSW","NORTHERN ARIZONA UNIVERSITY",8,8,119,"OhioValley","Ohio University",30.000000069999999,8,122,"OhioValley","University of Pittsburgh",18320000.00000003,7,124,"MidCont","University of Nebraska-Lincoln at Omaha",42941000.000000067,6,124,"TexMex","Texas A&M University - Kingsville",61268500.000000097,7,124]
["OhioValley","University Akron",null,"None","Virginias","University of Virginia",64.233333353333336,2,125,"MidCont","University of Kansas",1297.7000001000001,7,125,"UpstateNY","Rensselaer Polytechnic Institute",8,8,119,"UpstateNY","SUNY At Buffalo",30.000000069999999,7,122,"SoEast","Florida Institute of Technology",18340000.00000016,15,125,"MidCont","University of Kansas",42977000.000000097,7,125,"TexMex","Southern Methodist University",61553333.333333366,8,125]
["SoEast","University of Alabama",null,"None","SoEast","University of Tennessee - Chattanooga",64.416666816666677,15,126,"MidCont","University of Nebraska-Lincoln",1300.7000000400001,8,126,"MidCont","Southern Illinois University Carbondale",8,8,119,"MidAtlantic","University of Maryland",30.000000069999999,7,122,"RockyMtn","New Mexico State University",18700000.000000112,11,126,"MidCont","University of Nebraska-Lincoln",43007000.000000037,8,126,"OhioValley","Ohio University",62935000.000000067,7,126]
["PacNW","University of Alaska - Fairbanks",null,"None","OhioValley","Ohio University",64.650000070000004,8,127,"PacSW","SAN DIEGO STATE UNIVERSITY",1308.00000011,9,127,"OhioValley","University of Cincinnati",8,8,119,"SoEast","University of Miami",30.000000069999999,11,122,"MidCont","Southern Illinois University Edwardsville",18935000.00000006,9,127,"PacSW","SAN DIEGO STATE UNIVERSITY",43080000.000000112,9,127,"MidCont","St. Louis University",63317000.000000089,9,127]
["PacSW","UNIVERSITY OF ARIZONA",null,"None","PacSW","UNIVERSITY OF CALIFORNIA, LOS ANGELES",65.73333336333333,8,128,"SoEast","Tennessee Technological University",1316.70000003,13,128,"SoEast","University of Florida",8,8,119,"MidCont","University of Nebraska-Lincoln at Omaha",30.000000069999999,7,122,"Virginias","WVU Institute of Technology",18995000.00000006,2,128,"SoEast","Tennessee Technological University",43167000.00000003,13,128,"OhioValley","University of Cincinnati",63625000.000000082,8,128]
["PacNW","University of British Columbia",null,"None","Virginias","Catholic University",66.166666716666654,3,129,"RockyMtn","University of Colorado-Boulder",1336.8000000099998,11,129,"TexMex","University of Houston",8,8,119,"PacSW","UNIVERSITY OF SOUTHERN CALIFORNIA",30.000000069999999,7,122,"DeepSouth","University of Memphis",19055000.000000048,4,129,"RockyMtn","University of Colorado-Boulder",43368000.000000007,11,129,"Virginias","University of Virginia",65134000.000000022,2,129]
["MidPac","University of California, Berkeley ",null,"None","GreatLakes","Notre Dame University",67.616666706666678,4,{"$f":"RANK(G134,G$5:G$164,1)","v":130},"UpstateNY","Hudson Valley Community College",1349.00000006,8,{"$f":"RANK(L134,L$5:L$164,1)","v":130},"MidWest","University of Minnesota",8,8,{"$f":"RANK(R134,R$5:R$164,1)","v":119},"RockyMtn","University of Utah",30.000000069999999,8,{"$f":"RANK(V134,V$5:V$164,1)","v":122},"Virginias","University of Virginia",19270000.000000019,3,{"$f":"RANK(AA134,AA$5:AA$164,1)","v":130},"TexMex","Southern Methodist University",43420000.000000037,7,{"$f":"RANK(AF134,AF$5:AF$164,1)","v":130},"Virginias","WVU Institute of Technology",65181000.00000006,3,{"$f":"RANK(AK134,AK$5:AK$164,1)","v":130}]
["MidPac","University of California, Davis ",null,"None","Virginias","West Virginia University",67.666666696666667,4,131,"OhioValley","Carnegie Mellon University",1350.0000001000001,7,131,"SoEast","University of South Florida",8,8,119,"MidPac","California State University, Chico ",30.00000008,8,131,"SoEast","University of Tennessee - Chattanooga",19325000.000000149,16,131,"UpstateNY","Hudson Valley Community College",43490000.00000006,8,131,"SoEast","University of Tennessee - Chattanooga",65412000.000000149,16,131]
["PacSW","UNIVERSITY OF CALIFORNIA, LOS ANGELES",null,"None","TexMex","University of Houston",70.733333413333341,8,132,"OhioValley","Ohio University",1354.0000000699999,8,132,"PacNW","Boise State University",9,9,132,"RockyMtn","Colorado State University",30.00000008,9,131,"OhioValley","Ohio University",19395000.000000071,8,132,"OhioValley","Ohio University",43540000.000000067,8,132,"Virginias","West Virginia University",65746000.00000003,4,132]
["PacSW","UNIVERSITY OF CALIFORNIA, SAN DIEGO",null,"None","MidCont","University of Oklahoma",71.983333443333336,10,133,"PacNW","Idaho State University",1361.00000004,9,133,"MidAtlantic","Bucknell University",9,9,132,"MidAtlantic","Lehigh University",30.00000008,8,131,"GreatLakes","Notre Dame University",20285000.000000045,4,133,"PacNW","Idaho State University",43610000.000000037,9,133,"Metro","Manhattan College",66600000.000000045,7,133]
["SoEast","University of Central Florida",null,"None","TexMex","Southern Methodist University",72.533333373333335,9,134,"PacSW","UNIVERSITY OF SOUTHERN CALIFORNIA",1362.0000000699999,10,134,"PacSW","CALIFORNIA STATE UNIVERSITY, NORTHRIDGE",9,9,132,"PacNW","Montana Tech",30.00000008,9,131,"Virginias","West Virginia University",20300000.00000003,4,134,"PacSW","UNIVERSITY OF SOUTHERN CALIFORNIA",43620000.000000067,10,134,"DeepSouth","University of Mississippi",66620000.000000037,5,134]
["OhioValley","University of Cincinnati",null,"None","Virginias","George Washington University",184.00000004,5,135,"PacSW","UNIVERSITY OF CALIFORNIA, SAN DIEGO",1362.0000001000001,11,135,"MidWest","Mankato State University",9,9,132,"PacSW","NORTHERN ARIZONA UNIVERSITY",30.00000008,8,131,"TexMex","University of Houston",21220000.000000078,9,135,"PacSW","UNIVERSITY OF CALIFORNIA, SAN DIEGO",43620000.000000097,11,135,"TexMex","University of Houston",66785000.000000082,9,135]
["RockyMtn","University of Colorado-Boulder",null,"None","OhioValley","Carnegie Mellon University",186.50000009999999,9,136,"TexMex","University of Texas - Arlington",1365.20000009,8,136,"OhioValley","Ohio State University",9,9,132,"UpstateNY","Rensselaer Polytechnic Institute",30.00000008,8,131,"MidCont","University of Oklahoma",21595000.000000112,10,136,"TexMex","University of Texas - Arlington",43652000.000000089,8,136,"Virginias","George Washington University",67201500.000000045,5,136]
["RockyMtn","University of Colorado-Denver",null,"None","DeepSouth","University of Mississippi",186.75000004,5,137,"SoEast","University of South Alabama",1378.20000013,14,137,"MidPac","San Francisco State University ",9,9,132,"MidCont","Southern Illinois University Carbondale",30.00000008,8,131,"OhioValley","Cleveland State University",53187500.000000037,9,137,"SoEast","University of South Alabama",43782000.000000127,14,137,"NewEngland","University of Hartford",69233000.000000104,11,137]
["MidAtlantic","University of Delaware",null,"None","Metro","Manhattan College",188.56666670666667,7,138,"Carolinas","North Carolina State University",1386.40000001,4,138,"MidCont","St. Louis University",9,9,132,"OhioValley","University of Cincinnati",30.00000008,9,131,"PacSW","NORTHERN ARIZONA UNIVERSITY",53954166.666666746,9,138,"Carolinas","North Carolina State University",43864000.000000007,4,138,"RockyMtn","New Mexico State University",70032000.000000104,11,138]
["SoEast","University of Florida",null,"None","MidPac","University of the Pacific ",190.25000003,7,139,"TexMex","University of Houston",1394.0000000800001,9,139,"NewEngland","Umass Amherst",9,9,132,"MidAtlantic","Bucknell University",30.00000009,9,139,"NorthCentral","Case Western Reserve University",54025000.000000037,6,139,"SoEast","University of North Florida",44148000.000000112,15,139,"MidPac","University of the Pacific ",70090000.00000003,7,139]
["NewEngland","University of Hartford",null,"None","NewEngland","University of Hartford",190.60000011,11,140,"SoEast","University of North Florida",1414.8000001099999,15,140,"TexMex","University of Texas - Arlington",9,9,132,"PacSW","CALIFORNIA STATE UNIVERSITY, NORTHRIDGE",30.00000009,9,139,"Virginias","George Washington University",55200000.000000037,5,140,"Carolinas","University of North Carolina at Charlotte",44290000.00000006,5,140,"MidCont","University of Oklahoma",70993000.000000104,10,140]
["PacSW","UNIVERSITY OF HAWAII AT MANOA",null,"None","TexMex","Universidad La Salle Cuernavaca",211.25000005999999,10,141,"Carolinas","University of North Carolina at Charlotte",1429.00000006,5,141,"RockyMtn","Utah State University ",9,9,132,"OhioValley","Ohio State University",30.00000009,10,139,"OhioValley","Carnegie Mellon University",55950000.000000097,10,141,"PacNW","Montana Tech",44400000.000000082,10,141,"OhioValley","Carnegie Mellon University",71310000.000000104,9,141]
["TexMex","University of Houston",null,"None","PacNW","Montana Tech",211.75000008000001,10,142,"PacNW","Montana Tech",1440.0000000800001,10,142,"OhioValley","Carnegie Mellon University",10,10,142,"MidPac","San Francisco State University ",30.00000009,9,139,"DeepSouth","University of Mississippi",56025000.000000037,5,142,"MidCont","Southern Illinois University Carbondale",44652000.000000082,9,142,"GreatLakes","Notre Dame University",71317000.000000045,4,142]
["PacNW","University of Idaho",null,"None","SoEast","University of Central Florida",212.50000004,16,143,"MidCont","Southern Illinois University Carbondale",1465.2000000800001,9,143,"NewEngland","Merrimack College",10,10,142,"MidCont","St. Louis University",30.00000009,9,139,"MidAtlantic","Bucknell University",56562500.000000089,9,143,"OhioValley","University of Cincinnati",45360000.000000082,9,143,"PacSW","NORTHERN ARIZONA UNIVERSITY",92954166.666666731,9,143]
["GreatLakes","University of Illinois at Urbana-Champaign",null,"None","OhioValley","Cleveland State University",212.75000004,10,144,"OhioValley","University of Cincinnati",1536.0000000800001,9,144,"TexMex","Texas A&M University - Kingsville",10,10,142,"TexMex","University of Texas - Arlington",30.00000009,7,139,"Metro","Manhattan College",56570000.000000045,7,144,"Virginias","West Virginia University",45446000.00000003,3,144,"NorthCentral","Case Western Reserve University",96680000.000000045,6,144]
["MidWest","University of Iowa",null,"None","Virginias","Marshall University",213.75000001000001,6,145,"Virginias","West Virginia University",1544.6000000299998,3,145,"PacSW","UNIVERSITY OF CALIFORNIA, SAN DIEGO",10,10,142,"PacSW","UNIVERSITY OF CALIFORNIA, SAN DIEGO",30.000000100000001,10,145,"MidPac","University of the Pacific ",57075000.00000003,7,145,"TexMex","University of Houston",45565000.000000082,9,145,"OhioValley","Cleveland State University",99487500.000000045,10,145]
["MidCont","University of Kansas",null,"None","PacSW","UNIVERSITY OF SOUTHERN CALIFORNIA",213.75000007,9,146,"MidPac","San Francisco State University ",1557.40000009,8,146,"MidCont","University of Kansas",10,10,142,"MidCont","University of Kansas",30.000000100000001,10,145,"NewEngland","University of Hartford",57180000.000000104,11,146,"MidPac","San Francisco State University ",45574000.000000089,8,146,"TexMex","Universidad La Salle Cuernavaca",103303000.00000006,10,146]
["NewEngland","University of Laval",null,"None","UpstateNY","United States Military Academy",214.50000003,7,147,"MidCont","St. Louis University",1558.20000009,10,147,"RockyMtn","University of New Mexico",10,10,142,"RockyMtn","University of New Mexico",30.000000100000001,10,145,"TexMex","Universidad La Salle Cuernavaca",63375000.00000006,10,147,"MidCont","St. Louis University",45582000.000000089,10,147,"MidAtlantic","Bucknell University",103820500.00000009,9,147]
["DeepSouth","University of Louisiana at Lafayette",null,"None","Carolinas","University of South Carolina",214.75000004,5,148,"Metro","Cooper Union",1562.0000000499999,7,148,"PacNW","University of Washington",10,10,142,"PacNW","University of Washington",30.000000100000001,10,145,"PacNW","Montana Tech",63525000.000000082,10,148,"Metro","Cooper Union",45620000.000000052,7,148,"UpstateNY","United States Military Academy",103850000.00000003,7,148]
["OhioValley","University of Louisville",null,"None","MidWest","University of Iowa",215.33333339333333,9,149,"Virginias","University of Virginia",1586.4000000200001,4,149,"SoEast","Vanderbilt University",10,10,142,"RockyMtn","New Mexico State University",30.000000109999998,11,149,"Virginias","Marshall University",64125000.000000007,6,149,"Virginias","University of Virginia",45864000.000000022,4,149,"PacSW","UNIVERSITY OF ARIZONA",104505000.00000001,10,149]
["MidAtlantic","University of Maryland",null,"None","Carolinas","University of North Carolina at Charlotte",215.75000005999999,6,150,"SoEast","University of Tennessee - Chattanooga",1608.7000001500001,16,150,"RockyMtn","New Mexico State University",11,11,150,"PacSW","SAN DIEGO STATE UNIVERSITY",30.000000109999998,11,149,"PacSW","UNIVERSITY OF SOUTHERN CALIFORNIA",64125000.000000067,10,150,"SoEast","University of Tennessee - Chattanooga",46087000.000000149,16,150,"MidWest","University of Iowa",104670000.00000006,9,150]
["DeepSouth","University of Memphis",null,"None","PacSW","NORTHERN ARIZONA UNIVERSITY",215.81666674666667,10,151,"Virginias","WVU Institute of Technology",1618.60000006,5,151,"PacSW","SAN DIEGO STATE UNIVERSITY",11,11,150,"SoEast","University of North Florida",30.000000109999998,12,149,"UpstateNY","United States Military Academy",64350000.00000003,7,151,"Virginias","WVU Institute of Technology",46186000.00000006,5,151,"UpstateNY","Rensselaer Polytechnic Institute",107360000.00000007,8,151]
["SoEast","University of Miami",null,"None","NorthCentral","Case Western Reserve University",216.10000004,6,152,"OhioValley","Cleveland State University",1630.00000004,10,152,"NewEngland","University of Hartford",11,11,150,"MidCont","University of Oklahoma",30.000000109999998,11,149,"Carolinas","University of South Carolina",64425000.000000037,5,152,"OhioValley","Cleveland State University",46300000.000000037,10,152,"RockyMtn","University of Wyoming",107630000.00000006,12,152]
["NorthCentral","University of Michigan",null,"None","MidPac","University of Nevada, Reno ",216.85000005999999,8,153,"TexMex","Texas A&M University - Kingsville",1650.6000001,10,153,"SoEast","University of North Florida",11,11,150,"RockyMtn","University of Colorado-Denver",30.000000119999999,12,153,"MidWest","University of Iowa",64600000.00000006,9,153,"MidAtlantic","Bucknell University",47258000.000000089,9,153,"PacSW","UNIVERSITY OF SOUTHERN CALIFORNIA",107745000.00000007,11,153]
["MidWest","University of Minnesota",null,"None","RockyMtn","University of Wyoming",218.16666672666665,11,154,"MidAtlantic","Bucknell University",1725.8000000899999,9,154,"MidCont","University of Oklahoma",11,11,150,"SoEast","FAMU-FSU College of Engineering",30.00000013,13,154,"Carolinas","University of North Carolina at Charlotte",64725000.00000006,6,154,"TexMex","Texas A&M University - Kingsville",48193500.000000097,10,154,"PacNW","Montana Tech",107925000.00000007,10,154]
["DeepSouth","University of Mississippi",null,"None","PacSW","UNIVERSITY OF ARIZONA",219.01666668666667,11,155,"MidCont","University of Oklahoma",1939.8000001099999,11,155,"SoEast","Southern Polytechnic State University",12,12,155,"SoEast","University of South Alabama",30.00000013,13,154,"MidPac","University of Nevada, Reno ",65055000.000000052,8,155,"MidCont","University of Oklahoma",49398000.000000112,11,155,"Carolinas","University of North Carolina at Charlotte",109015000.00000006,5,155]
["MidCont","University of Missouri-Columbia",null,"None","MidCont","Southern Illinois University Carbondale",223.41666674666666,11,156,"Virginias","Marshall University",1947.0000000099999,6,156,"RockyMtn","University of Colorado-Denver",12,12,155,"SoEast","University of Tennessee - Chattanooga",30.000000150000002,15,156,"RockyMtn","University of Wyoming",65450000.00000006,12,156,"Virginias","Marshall University",49470000.000000007,6,156,"MidCont","Southern Illinois University Carbondale",111677000.00000007,11,156]
["MidCont","University of Missouri-Kansas City",null,"None","RockyMtn","University of Colorado-Boulder",223.93333334333335,12,157,"GreatLakes","Notre Dame University",2103.2000000399998,4,157,"SoEast","FAMU-FSU College of Engineering",13,13,157,"SoEast","Florida Institute of Technology",30.000000159999999,16,157,"PacSW","UNIVERSITY OF ARIZONA",65705000.00000003,11,157,"GreatLakes","Notre Dame University",51032000.000000037,4,157,"MidPac","San Francisco State University ",113299000.00000009,8,157]
["MidCont","University of Nebraska-Lincoln",null,"None","UpstateNY","Rensselaer Polytechnic Institute",224.53333341333334,8,158,"MidPac","University of Nevada, Reno ",2108.4000000599999,9,158,"SoEast","University of South Alabama",13,13,157,"TexMex","University of Houston",31.62500008,8,158,"MidCont","Southern Illinois University Carbondale",67025000.000000082,11,158,"MidPac","University of Nevada, Reno ",51084000.00000006,9,158,"Virginias","Marshall University",113595000.00000001,6,158]
["MidCont","University of Nebraska-Lincoln at Omaha",null,"None","MidPac","San Francisco State University ",225.75000008999999,9,159,"RockyMtn","New Mexico State University",2133.20000011,12,159,"SoEast","University of Tennessee - Chattanooga",15,15,159,"TexMex","Texas A&M University - Kingsville",31.687500100000001,9,159,"UpstateNY","Rensselaer Polytechnic Institute",67360000.000000075,8,159,"RockyMtn","New Mexico State University",51332000.000000112,12,159,"MidPac","University of Nevada, Reno ",116139000.00000006,9,159]
["PacSW","UNIVERSITY OF NEVADA, LAS VEGAS",null,"None","MidAtlantic","Bucknell University",226.25000008999999,9,160,"Carolinas","University of South Carolina",2752.00000004,6,160,"SoEast","Florida Institute of Technology",16,16,160,"TexMex","Southern Methodist University",31.75000004,10,160,"MidPac","San Francisco State University ",67725000.000000089,9,160,"Carolinas","University of South Carolina",57520000.000000037,6,160,"Carolinas","University of South Carolina",121945000.00000004,6,160]
["MidPac","University of Nevada, Reno ",null,"None","PacSW","ARIZONA STATE UNIVERSITY","---","---",null,"PacSW","ARIZONA STATE UNIVERSITY","---","---",null,"PacSW","ARIZONA STATE UNIVERSITY","---","---",null,"PacSW","ARIZONA STATE UNIVERSITY","---","---",null,"PacSW","ARIZONA STATE UNIVERSITY","---","---",null,"PacSW","ARIZONA STATE UNIVERSITY","---","---",null,"PacSW","ARIZONA STATE UNIVERSITY","---","---"]
["NewEngland","University of New Hampshire",null,"None","DeepSouth","Arkansas State University","---","---",null,"DeepSouth","Arkansas State University","---","---",null,"DeepSouth","Arkansas State University","---","---",null,"DeepSouth","Arkansas State University","---","---",null,"DeepSouth","Arkansas State University","---","---",null,"DeepSouth","Arkansas State University","---","---",null,"DeepSouth","Arkansas State University","---","---"]
["RockyMtn","University of New Mexico",null,"None","GreatLakes","Bradley University","---","---",null,"GreatLakes","Bradley University","---","---",null,"GreatLakes","Bradley University","---","---",null,"GreatLakes","Bradley University","---","---",null,"GreatLakes","Bradley University","---","---",null,"GreatLakes","Bradley University","---","---",null,"GreatLakes","Bradley University","---","---"]
["Carolinas","University of North Carolina at Charlotte",null,"None","PacSW","CALIFORNIA BAPTIST UNIVERSITY","---","---",null,"PacSW","CALIFORNIA BAPTIST UNIVERSITY","---","---",null,"PacSW","CALIFORNIA BAPTIST UNIVERSITY","---","---",null,"PacSW","CALIFORNIA BAPTIST UNIVERSITY","---","---",null,"PacSW","CALIFORNIA BAPTIST UNIVERSITY","---","---",null,"PacSW","CALIFORNIA BAPTIST UNIVERSITY","---","---",null,"PacSW","CALIFORNIA BAPTIST UNIVERSITY","---","---"]
["MidWest","University of North Dakota",null,"None","MidPac","California State University, Fresno ","---","---",null,"MidPac","California State University, Fresno ","---","---",null,"MidPac","California State University, Fresno ","---","---",null,"MidPac","California State University, Fresno ","---","---",null,"MidPac","California State University, Fresno ","---","---",null,"MidPac","California State University, Fresno ","---","---",null,"MidPac","California State University, Fresno ","---","---"]
["SoEast","University of North Florida",null,"None","PacSW","CALIFORNIA STATE UNIVERSITY, FULLERTON","---","---",null,"PacSW","CALIFORNIA STATE UNIVERSITY, FULLERTON","---","---",null,"PacSW","CALIFORNIA STATE UNIVERSITY, FULLERTON","---","---",null,"PacSW","CALIFORNIA STATE UNIVERSITY, FULLERTON","---","---",null,"PacSW","CALIFORNIA STATE UNIVERSITY, FULLERTON","---","---",null,"PacSW","CALIFORNIA STATE UNIVERSITY, FULLERTON","---","---",null,"PacSW","CALIFORNIA STATE UNIVERSITY, FULLERTON","---","---"]
["MidCont","University of Oklahoma",null,"None","PacSW","CALIFORNIA STATE UNIVERSITY, LONG BEACH","---","---",null,"PacSW","CALIFORNIA STATE UNIVERSITY, LONG BEACH","---","---",null,"PacSW","CALIFORNIA STATE UNIVERSITY, LONG BEACH","---","---",null,"PacSW","CALIFORNIA STATE UNIVERSITY, LONG BEACH","---","---",null,"PacSW","CALIFORNIA STATE UNIVERSITY, LONG BEACH","---","---",null,"PacSW","CALIFORNIA STATE UNIVERSITY, LONG BEACH","---","---",null,"PacSW","CALIFORNIA STATE UNIVERSITY, LONG BEACH","---","---"]
["OhioValley","University of Pittsburgh",null,"None","PacSW","CALIFORNIA STATE UNIVERSITY, LOS ANGELES","---","---",null,"PacSW","CALIFORNIA STATE UNIVERSITY, LOS ANGELES","---","---",null,"PacSW","CALIFORNIA STATE UNIVERSITY, LOS ANGELES","---","---",null,"PacSW","CALIFORNIA STATE UNIVERSITY, LOS ANGELES","---","---",null,"PacSW","CALIFORNIA STATE UNIVERSITY, LOS ANGELES","---","---",null,"PacSW","CALIFORNIA STATE UNIVERSITY, LOS ANGELES","---","---",null,"PacSW","CALIFORNIA STATE UNIVERSITY, LOS ANGELES","---","---"]
["MidAtlantic","University of Pittsburgh - Johnstown",null,"None","OhioValley","Cincinnati State Technical & Community College","---","---",null,"OhioValley","Cincinnati State Technical & Community College","---","---",null,"OhioValley","Cincinnati State Technical & Community College","---","---",null,"OhioValley","Cincinnati State Technical & Community College","---","---",null,"OhioValley","Cincinnati State Technical & Community College","---","---",null,"OhioValley","Cincinnati State Technical & Community College","---","---",null,"OhioValley","Cincinnati State Technical & Community College","---","---"]
["SoEast","University of Puerto Rico - Mayaguez",null,"None","SoEast","Florida Atlantic University","---","---",null,"SoEast","Florida Atlantic University","---","---",null,"SoEast","Florida Atlantic University","---","---",null,"SoEast","Florida Atlantic University","---","---",null,"SoEast","Florida Atlantic University","---","---",null,"SoEast","Florida Atlantic University","---","---",null,"SoEast","Florida Atlantic University","---","---"]
["SoEast","University of South Alabama",null,"None","Virginias","George Mason University","---","---",null,"Virginias","George Mason University","---","---",null,"Virginias","George Mason University","---","---",null,"Virginias","George Mason University","---","---",null,"Virginias","George Mason University","---","---",null,"Virginias","George Mason University","---","---",null,"Virginias","George Mason University","---","---"]
["Carolinas","University of South Carolina",null,"None","GreatLakes","Illinois Institute of Technology","---","---",null,"GreatLakes","Illinois Institute of Technology","---","---",null,"GreatLakes","Illinois Institute of Technology","---","---",null,"GreatLakes","Illinois Institute of Technology","---","---",null,"GreatLakes","Illinois Institute of Technology","---","---",null,"GreatLakes","Illinois Institute of Technology","---","---",null,"GreatLakes","Illinois Institute of Technology","---","---"]
["SoEast","University of South Florida",null,"None","GreatLakes","Indiana University- Purdue University Fort Wayne","---","---",null,"GreatLakes","Indiana University- Purdue University Fort Wayne","---","---",null,"GreatLakes","Indiana University- Purdue University Fort Wayne","---","---",null,"GreatLakes","Indiana University- Purdue University Fort Wayne","---","---",null,"GreatLakes","Indiana University- Purdue University Fort Wayne","---","---",null,"GreatLakes","Indiana University- Purdue University Fort Wayne","---","---",null,"GreatLakes","Indiana University- Purdue University Fort Wayne","---","---"]
["PacSW","UNIVERSITY OF SOUTHERN CALIFORNIA",null,"None","PacSW","LOYOLA MARYMOUNT UNIVERSITY","---","---",null,"PacSW","LOYOLA MARYMOUNT UNIVERSITY","---","---",null,"PacSW","LOYOLA MARYMOUNT UNIVERSITY","---","---",null,"PacSW","LOYOLA MARYMOUNT UNIVERSITY","---","---",null,"PacSW","LOYOLA MARYMOUNT UNIVERSITY","---","---",null,"PacSW","LOYOLA MARYMOUNT UNIVERSITY","---","---",null,"PacSW","LOYOLA MARYMOUNT UNIVERSITY","---","---"]
["SoEast","University of Tennessee - Chattanooga",null,"None","DeepSouth","Mississippi State University","---","---",null,"DeepSouth","Mississippi State University","---","---",null,"DeepSouth","Mississippi State University","---","---",null,"DeepSouth","Mississippi State University","---","---",null,"DeepSouth","Mississippi State University","---","---",null,"DeepSouth","Mississippi State University","---","---",null,"DeepSouth","Mississippi State University","---","---"]
["SoEast","University of Tennessee - Knoxville",null,"None","PacNW","Montana State University","---","---",null,"PacNW","Montana State University","---","---",null,"PacNW","Montana State University","---","---",null,"PacNW","Montana State University","---","---",null,"PacNW","Montana State University","---","---",null,"PacNW","Montana State University","---","---",null,"PacNW","Montana State University","---","---"]
["TexMex","University of Texas - Arlington",null,"None","GreatLakes","Northwestern University","---","---",null,"GreatLakes","Northwestern University","---","---",null,"GreatLakes","Northwestern University","---","---",null,"GreatLakes","Northwestern University","---","---",null,"GreatLakes","Northwestern University","---","---",null,"GreatLakes","Northwestern University","---","---",null,"GreatLakes","Northwestern University","---","---"]
["TexMex","University of Texas - Austin",null,"None","Metro","NYU-Poly","---","---",null,"Metro","NYU-Poly","---","---",null,"Metro","NYU-Poly","---","---",null,"Metro","NYU-Poly","---","---",null,"Metro","NYU-Poly","---","---",null,"Metro","NYU-Poly","---","---",null,"Metro","NYU-Poly","---","---"]
["TexMex","University of Texas - El Paso",null,"None","NorthCentral","Ohio Northern University","---","---",null,"NorthCentral","Ohio Northern University","---","---",null,"NorthCentral","Ohio Northern University","---","---",null,"NorthCentral","Ohio Northern University","---","---",null,"NorthCentral","Ohio Northern University","---","---",null,"NorthCentral","Ohio Northern University","---","---",null,"NorthCentral","Ohio Northern University","---","---"]
["TexMex","University of Texas - San Antonio",null,"None","MidCont","Oklahoma State University","---","---",null,"MidCont","Oklahoma State University","---","---",null,"MidCont","Oklahoma State University","---","---",null,"MidCont","Oklahoma State University","---","---",null,"MidCont","Oklahoma State University","---","---",null,"MidCont","Oklahoma State University","---","---",null,"MidCont","Oklahoma State University","---","---"]
["MidPac","University of the Pacific ",null,"None","GreatLakes","Purdue University","---","---",null,"GreatLakes","Purdue University","---","---",null,"GreatLakes","Purdue University","---","---",null,"GreatLakes","Purdue University","---","---",null,"GreatLakes","Purdue University","---","---",null,"GreatLakes","Purdue University","---","---",null,"GreatLakes","Purdue University","---","---"]
["RockyMtn","University of Utah",null,"None","GreatLakes","Purdue University- Calumet","---","---",null,"GreatLakes","Purdue University- Calumet","---","---",null,"GreatLakes","Purdue University- Calumet","---","---",null,"GreatLakes","Purdue University- Calumet","---","---",null,"GreatLakes","Purdue University- Calumet","---","---",null,"GreatLakes","Purdue University- Calumet","---","---",null,"GreatLakes","Purdue University- Calumet","---","---"]
["NewEngland","University of Vermont",null,"None","UpstateNY","Rochester Institute Of Technology","---","---",null,"UpstateNY","Rochester Institute Of Technology","---","---",null,"UpstateNY","Rochester Institute Of Technology","---","---",null,"UpstateNY","Rochester Institute Of Technology","---","---",null,"UpstateNY","Rochester Institute Of Technology","---","---",null,"UpstateNY","Rochester Institute Of Technology","---","---",null,"UpstateNY","Rochester Institute Of Technology","---","---"]
["Virginias","University of Virginia",null,"None","MidPac","Santa Clara University ","---","---",null,"MidPac","Santa Clara University ","---","---",null,"MidPac","Santa Clara University ","---","---",null,"MidPac","Santa Clara University ","---","---",null,"MidPac","Santa Clara University ","---","---",null,"MidPac","Santa Clara University ","---","---",null,"MidPac","Santa Clara University ","---","---"]
["PacNW","University of Washington",null,"None","PacNW","Seattle University","---","---",null,"PacNW","Seattle University","---","---",null,"PacNW","Seattle University","---","---",null,"PacNW","Seattle University","---","---",null,"PacNW","Seattle University","---","---",null,"PacNW","Seattle University","---","---",null,"PacNW","Seattle University","---","---"]
["GreatLakes","University of Wisconsin at Madison",null,"None","TexMex","Texas Tech University","---","---",null,"TexMex","Texas Tech University","---","---",null,"TexMex","Texas Tech University","---","---",null,"TexMex","Texas Tech University","---","---",null,"TexMex","Texas Tech University","---","---",null,"TexMex","Texas Tech University","---","---",null,"TexMex","Texas Tech University","---","---"]
["MidWest","University of Wisconsin, Platteville",null,"None","GreatLakes","Trine University","---","---",null,"GreatLakes","Trine University","---","---",null,"GreatLakes","Trine University","---","---",null,"GreatLakes","Trine University","---","---",null,"GreatLakes","Trine University","---","---",null,"GreatLakes","Trine University","---","---",null,"GreatLakes","Trine University","---","---"]
["RockyMtn","University of Wyoming",null,"None","NewEngland","Tufts University","---","---",null,"NewEngland","Tufts University","---","---",null,"NewEngland","Tufts University","---","---",null,"NewEngland","Tufts University","---","---",null,"NewEngland","Tufts University","---","---",null,"NewEngland","Tufts University","---","---",null,"NewEngland","Tufts University","---","---"]
["RockyMtn","Utah State University ",null,"None","NewEngland","UConn","---","---",null,"NewEngland","UConn","---","---",null,"NewEngland","UConn","---","---",null,"NewEngland","UConn","---","---",null,"NewEngland","UConn","---","---",null,"NewEngland","UConn","---","---",null,"NewEngland","UConn","---","---"]
["SoEast","Vanderbilt University",null,"None","DeepSouth","University of Arkansas at Little Rock","---","---",null,"DeepSouth","University of Arkansas at Little Rock","---","---",null,"DeepSouth","University of Arkansas at Little Rock","---","---",null,"DeepSouth","University of Arkansas at Little Rock","---","---",null,"DeepSouth","University of Arkansas at Little Rock","---","---",null,"DeepSouth","University of Arkansas at Little Rock","---","---",null,"DeepSouth","University of Arkansas at Little Rock","---","---"]
["PacNW","Washington State University",null,"None","PacSW","UNIVERSITY OF CALIFORNIA, IRVINE","---","---",null,"PacSW","UNIVERSITY OF CALIFORNIA, IRVINE","---","---",null,"PacSW","UNIVERSITY OF CALIFORNIA, IRVINE","---","---",null,"PacSW","UNIVERSITY OF CALIFORNIA, IRVINE","---","---",null,"PacSW","UNIVERSITY OF CALIFORNIA, IRVINE","---","---",null,"PacSW","UNIVERSITY OF CALIFORNIA, IRVINE","---","---",null,"PacSW","UNIVERSITY OF CALIFORNIA, IRVINE","---","---"]
["NorthCentral","Wayne State University",null,"None","GreatLakes","University of Illinois at Chicago","---","---",null,"GreatLakes","University of Illinois at Chicago","---","---",null,"GreatLakes","University of Illinois at Chicago","---","---",null,"GreatLakes","University of Illinois at Chicago","---","---",null,"GreatLakes","University of Illinois at Chicago","---","---",null,"GreatLakes","University of Illinois at Chicago","---","---",null,"GreatLakes","University of Illinois at Chicago","---","---"]
["NewEngland","Wenwroth Institute of Technology",null,"None","DeepSouth","University of Tennessee at Martin","---","---",null,"DeepSouth","University of Tennessee at Martin","---","---",null,"DeepSouth","University of Tennessee at Martin","---","---",null,"DeepSouth","University of Tennessee at Martin","---","---",null,"DeepSouth","University of Tennessee at Martin","---","---",null,"DeepSouth","University of Tennessee at Martin","---","---",null,"DeepSouth","University of Tennessee at Martin","---","---"]
["Virginias","West Virginia University",null,"None","GreatLakes","University of Wisconsin at Milwaukee","---","---",null,"GreatLakes","University of Wisconsin at Milwaukee","---","---",null,"GreatLakes","University of Wisconsin at Milwaukee","---","---",null,"GreatLakes","University of Wisconsin at Milwaukee","---","---",null,"GreatLakes","University of Wisconsin at Milwaukee","---","---",null,"GreatLakes","University of Wisconsin at Milwaukee","---","---",null,"GreatLakes","University of Wisconsin at Milwaukee","---","---"]
["OhioValley","Western Kentucky University",null,"None","MidAtlantic","Villanova University","---","---",null,"MidAtlantic","Villanova University","---","---",null,"MidAtlantic","Villanova University","---","---",null,"MidAtlantic","Villanova University","---","---",null,"MidAtlantic","Villanova University","---","---",null,"MidAtlantic","Villanova University","---","---",null,"MidAtlantic","Villanova University","---","---"]
["NewEngland","Worcester Polytechnic Instititute",null,"None","Virginias","Virginia Miltary Institute","---","---",null,"Virginias","Virginia Miltary Institute","---","---",null,"Virginias","Virginia Miltary Institute","---","---",null,"Virginias","Virginia Miltary Institute","---","---",null,"Virginias","Virginia Miltary Institute","---","---",null,"Virginias","Virginia Miltary Institute","---","---",null,"Virginias","Virginia Miltary Institute","---","---"]
["Virginias","WVU Institute of Technology",null,"None","Virginias","Virginia Tech","---","---",null,"Virginias","Virginia Tech","---","---",null,"Virginias","Virginia Tech","---","---",null,"Virginias","Virginia Tech","---","---",null,"Virginias","Virginia Tech","---","---",null,"Virginias","Virginia Tech","---","---",null,"Virginias","Virginia Tech","---","---"]
["OhioValley","Youngstown State University",null,"None","NorthCentral","Western Michigan University","---","---",null,"NorthCentral","Western Michigan University","---","---",null,"NorthCentral","Western Michigan University","---","---",null,"NorthCentral","Western Michigan University","---","---",null,"NorthCentral","Western Michigan University","---","---",null,"NorthCentral","Western Michigan University","---","---",null,"NorthCentral","Western Michigan University","---","---"]